Department family,Entity,Date,Expense type,Expense area,Supplier,Transaction number,Amount,VAT registration number
Department for Business Innovation and Skills,Intellectual Property Office,11/05/2015,Fixed Telecoms Equipment,IT Directorate,"Amazon Svcs Europe,sar",H57720150513imdmdaqbm,17.27,Not Applicable
Department for Business Innovation and Skills,Intellectual Property Office,22/05/2015,Fixed Telecoms Equipment,IT Directorate,Rentals From 02,H57720150526fftswjyqd,9.64,Not Applicable
Department for Business Innovation and Skills,Intellectual Property Office,19/05/2015,Fixed Telecoms Equipment,IT Directorate,Rentals From 02,H57720150521ppiotxpup,28.97,Not Applicable
Department for Business Innovation and Skills,Intellectual Property Office,19/05/2015,Fixed Telecoms Equipment,IT Directorate,Rentals From 02,H57720150521qeuqccxtu,41.69,Not Applicable
Department for Business Innovation and Skills,Intellectual Property Office,18/05/2015,Fixed Telecoms Equipment,IT Directorate,Meetingzone Ltd,H57720150520vnwkbcjzf,520.39,Not Applicable
Department for Business Innovation and Skills,Intellectual Property Office,22/05/2015,Fixed Telecoms Equipment,IT Directorate,Virgin Media Pymts,H57720150526ulwpdwyar,219.52,Not Applicable
Department for Business Innovation and Skills,Intellectual Property Office,13/05/2015,Fixed Telecoms Equipment,IT Directorate,Virgin Media Pymts,H57720150515iabojpprl,297.97,Not Applicable
Department for Business Innovation and Skills,Intellectual Property Office,30/04/2015,Software Maintenance,IT Directorate,Browserstack.Com,H57720150502hqtliaefr,159.58,Not Applicable
Department for Business Innovation and Skills,Intellectual Property Office,28/05/2015,Software Maintenance,IT Directorate,Paypal,H57720150530chjihozwd,62.81,Not Applicable
Department for Business Innovation and Skills,Intellectual Property Office,13/05/2015,Software Maintenance,IT Directorate,Digicert Inc,H57720150515kfntvdcps,473.55,Not Applicable
Department for Business Innovation and Skills,Intellectual Property Office,08/05/2015,Software Maintenance,IT Directorate,Paypal,H57720150512dgdesptbg,151.88,Not Applicable
Department for Business Innovation and Skills,Intellectual Property Office,12/05/2015,Software Maintenance,IT Directorate,Amazon UK Marketplace,H57720150514bfwyucwzb,44.4,Not Applicable
Department for Business Innovation and Skills,Intellectual Property Office,18/05/2015,Network and infrastructure H/W,IT Directorate,Currys Online,H57720150520hbincotrb,192.96,Not Applicable
Department for Business Innovation and Skills,Intellectual Property Office,18/05/2015,Network and infrastructure H/W,IT Directorate,Cabling4less,H57720150520igxsjxkpr,30.53,Not Applicable
Department for Business Innovation and Skills,Intellectual Property Office,18/05/2015,Network and infrastructure H/W,IT Directorate,Currys Online,H57720150520nnqsvnrsx,549,Not Applicable
Department for Business Innovation and Skills,Intellectual Property Office,12/05/2015,Network and infrastructure H/W,IT Directorate,Amazon UK Marketplace,H57720150514ahytoxpyk,31.44,Not Applicable
Department for Business Innovation and Skills,Intellectual Property Office,12/05/2015,Network and infrastructure H/W,IT Directorate,"Amazon Svcs Europe,sar",H57720150514mekqvruxl,450.3,Not Applicable
Department for Business Innovation and Skills,Intellectual Property Office,12/05/2015,Network and infrastructure H/W,IT Directorate,Amazon UK Retail,H57720150514pruubtoho,40.23,Not Applicable
Department for Business Innovation and Skills,Intellectual Property Office,05/05/2015,Perpetual Licences (no further payments),IT Directorate,Websitepulse.Com,H57720150508xxeffkweu,47.9,Not Applicable
Department for Business Innovation and Skills,Intellectual Property Office,07/05/2015,T&S UK,IT Directorate,Hrg UK Inm426188598,H57720150509cxpbtcfbo,3.08,Not Applicable
Department for Business Innovation and Skills,Intellectual Property Office,07/05/2015,T&S UK,IT Directorate,Hrg UK Inm426293592,H57720150509jbdxyftxf,3.08,Not Applicable
Department for Business Innovation and Skills,Intellectual Property Office,07/05/2015,T&S UK,IT Directorate,Hrg UK Inm426155571,H57720150509lgnxfrgze,3.08,Not Applicable
Department for Business Innovation and Skills,Intellectual Property Office,07/05/2015,T&S UK,IT Directorate,Hrg UK Inm426175319,H57720150509ywlkuqohu,3.08,Not Applicable
Department for Business Innovation and Skills,Intellectual Property Office,13/05/2015,Career Development Services,IT Directorate,Pcpm Ltd,H57720150515gjbadrvej,1238.4,Not Applicable
Department for Business Innovation and Skills,Intellectual Property Office,13/05/2015,Career Development Services,IT Directorate,Pcpm Ltd,H57720150515ijsdumapp,679.2,Not Applicable
Department for Business Innovation and Skills,Intellectual Property Office,13/05/2015,Career Development Services,IT Directorate,Pcpm Ltd,H57720150515myqorbqhl,1238.4,Not Applicable
Department for Business Innovation and Skills,Intellectual Property Office,13/05/2015,Career Development Services,IT Directorate,Pcpm Ltd,H57720150515sbdejyxce,1238.4,Not Applicable
Department for Business Innovation and Skills,Intellectual Property Office,13/05/2015,Career Development Services,IT Directorate,Pcpm Ltd,H57720150515wbdhyomzl,1238.4,Not Applicable
Department for Business Innovation and Skills,Intellectual Property Office,05/05/2015,Career Development Services,IT Directorate,General Assembly,H57720150507jlmsezble,33.44,Not Applicable
Department for Business Innovation and Skills,Intellectual Property Office,14/05/2015,T&S O-seas excl EPOQUE,IT Directorate,Easyjet,H57720150516iaylndlox,84.96,Not Applicable
Department for Business Innovation and Skills,Intellectual Property Office,28/05/2015,Career Development Services,IT Directorate,Eb Agile On The Beach,H57720150530hnokxduzq,2490.65,Not Applicable
Department for Business Innovation and Skills,Intellectual Property Office,27/05/2015,Career Development Services,IT Directorate,Paypal,H57720150529lemgigqdc,4410,Not Applicable
Department for Business Innovation and Skills,Intellectual Property Office,26/05/2015,Career Development Services,IT Directorate,Eb Agile Cymru 2015,H57720150528tqqdphvgr,564,Not Applicable
Department for Business Innovation and Skills,Intellectual Property Office,26/05/2015,Career Development Services,IT Directorate,Www.Assistkd.Com,H57720150528tjgimlojf,1638,Not Applicable
Department for Business Innovation and Skills,Intellectual Property Office,21/05/2015,Career Development Services,IT Directorate,Sti,H57720150523wwymljtxx,1668,Not Applicable
Department for Business Innovation and Skills,Intellectual Property Office,20/05/2015,Career Development Services,IT Directorate,Eb Agile Cymru 2015,H57720150522egnqxwizi,600,Not Applicable
Department for Business Innovation and Skills,Intellectual Property Office,05/05/2015,Career Development Services,IT Directorate,Elearningcurve Llc,H57720150508jnuvgybnk,1123.53,Not Applicable
Department for Business Innovation and Skills,Intellectual Property Office,22/05/2015,Placement Fees,IT Directorate,"Stack Exchange, Inc.",H57720150526eugmchycp,479,Not Applicable
Department for Business Innovation and Skills,Intellectual Property Office,20/05/2015,Placement Fees,IT Directorate,"Stack Exchange, Inc.",H57720150522wjhojqwid,325,Not Applicable
Department for Business Innovation and Skills,Intellectual Property Office,20/05/2015,Placement Fees,IT Directorate,"Stack Exchange, Inc.",H57720150522xorxfqtqz,479,Not Applicable
Department for Business Innovation and Skills,Intellectual Property Office,13/05/2015,Network and infrastructure H/W,IT Directorate,Msft *microsoftstore,H57720150515fzewbhqrt,1168.97,Not Applicable
Department for Business Innovation and Skills,Intellectual Property Office,14/05/2015,Entertainment,Secretariat,Marksandspencer.Co,H57720150516etedjwicm,58.4,Not Applicable
Department for Business Innovation and Skills,Intellectual Property Office,07/05/2015,Entertainment,Secretariat,Marksandspencer.Co,H57720150509jkvxaxrzl,35.2,Not Applicable
Department for Business Innovation and Skills,Intellectual Property Office,01/05/2015,Entertainment,Secretariat,Tesco Stores 2931,H57720150505vpvrrikeq,7,Not Applicable
Department for Business Innovation and Skills,Intellectual Property Office,01/05/2015,Career Development Services,Innovation Directorate,Web Credible,H57720150505eyuqwoogs,594,Not Applicable
Department for Business Innovation and Skills,Intellectual Property Office,07/05/2015,Career Development Services,Innovation Directorate,Www.Pmgltd.Co.Uk,H57720150509kwbfwguck,462,Not Applicable
Department for Business Innovation and Skills,Intellectual Property Office,22/05/2015,Advertising Distribution,Innovation Directorate,Paypal,H57720150526ihqhkzkab,12.52,Not Applicable
Department for Business Innovation and Skills,Intellectual Property Office,20/05/2015,Advertising Distribution,Innovation Directorate,Spotify Spotify Premiu,H57720150523thttmkgeb,119.88,Not Applicable
Department for Business Innovation and Skills,Intellectual Property Office,19/05/2015,Advertising Distribution,Innovation Directorate,Spotify Spotify Premiu,H57720150521pidrwmyxm,119.88,Not Applicable
Department for Business Innovation and Skills,Intellectual Property Office,14/05/2015,Books,Copyright and IP Enforcement Directorate,"Amazon Svcs Europe,sar",H57720150516fnrlfhhts,22.5,Not Applicable
Department for Business Innovation and Skills,Intellectual Property Office,15/05/2015,Books,Copyright and IP Enforcement Directorate,Pavillion Publishi And,H57720150519xwivvbrzl,33.95,Not Applicable
Department for Business Innovation and Skills,Intellectual Property Office,14/05/2015,Career Development Services,Finance Directorate,Usw Commercial Service,H57720150516zftbsetjy,434.5,Not Applicable
Department for Business Innovation and Skills,Intellectual Property Office,13/05/2015,Career Development Services,Finance Directorate,Usw Commercial Service,H57720150516edtyhoyeo,434.5,Not Applicable
Department for Business Innovation and Skills,Intellectual Property Office,06/05/2015,Career Development Services,Finance Directorate,Usw Commercial Service,H57720150508gdfhxkoid,434.5,Not Applicable
Department for Business Innovation and Skills,Intellectual Property Office,27/05/2015,Entertainment,Finance Directorate,Buyology Ltd,H57720150529olhmrgorg,5.56,Not Applicable
Department for Business Innovation and Skills,Intellectual Property Office,13/05/2015,Office Supplies,Finance Directorate,Poundworld Retail,H57720150515avfvudgvl,12.98,Not Applicable
Department for Business Innovation and Skills,Intellectual Property Office,30/04/2015,Office Supplies,Finance Directorate,"Amazon Svcs Europe,sar",H57720150502wmtovkxgk,24.98,Not Applicable
Department for Business Innovation and Skills,Intellectual Property Office,30/04/2015,Office Supplies,Finance Directorate,"Amazon Svcs Europe,sar",H57720150502ypbcvmone,58.88,Not Applicable
Department for Business Innovation and Skills,Intellectual Property Office,22/05/2015,Office Stationery,Finance Directorate,Amazon UK Retail,H57720150526bwtqwzguo,17.75,Not Applicable
Department for Business Innovation and Skills,Intellectual Property Office,26/05/2015,Office Stationery,Finance Directorate,Amazon UK Marketplace,H57720150528omwxobifb,11.94,Not Applicable
Department for Business Innovation and Skills,Intellectual Property Office,26/05/2015,Office Stationery,Finance Directorate,Xma Ltd,H57720150528wheujrdsw,42.58,Not Applicable
Department for Business Innovation and Skills,Intellectual Property Office,21/05/2015,Office Stationery,Finance Directorate,Xma Ltd,H57720150523szuztvwcd,38.14,Not Applicable
Department for Business Innovation and Skills,Intellectual Property Office,12/05/2015,Office Stationery,Finance Directorate,Xma Ltd,H57720150514cqttvsjwa,398.09,Not Applicable
Department for Business Innovation and Skills,Intellectual Property Office,12/05/2015,Office Stationery,Finance Directorate,Xma Ltd,H57720150514gshtjupqe,221.66,Not Applicable
Department for Business Innovation and Skills,Intellectual Property Office,12/05/2015,Office Stationery,Finance Directorate,Xma Ltd,H57720150514tdwcugxyy,255.24,Not Applicable
Department for Business Innovation and Skills,Intellectual Property Office,08/05/2015,Office Stationery,Finance Directorate,Www.Toner-Ink-Cartridg,H57720150512alpuejhny,27.3,Not Applicable
Department for Business Innovation and Skills,Intellectual Property Office,30/04/2015,Office Stationery,Finance Directorate,Xma Ltd,H57720150502fxrgxqjnq,145.99,Not Applicable
Department for Business Innovation and Skills,Intellectual Property Office,18/05/2015,Career Development Services,"People, Places and Services Directorate",Waterloo Hotel,H57720150520xqupgqobh,267.5,Not Applicable
Department for Business Innovation and Skills,Intellectual Property Office,14/05/2015,Career Development Services,"People, Places and Services Directorate",Www.Computeraidrai,H57720150516qpywrafdd,135.6,Not Applicable
Department for Business Innovation and Skills,Intellectual Property Office,14/05/2015,Career Development Services,"People, Places and Services Directorate",Www.Computeraidrai,H57720150516qpywrafdd,135.6,Not Applicable
Department for Business Innovation and Skills,Intellectual Property Office,14/05/2015,Career Development Services,"People, Places and Services Directorate",Www.Computeraidrai,H57720150516qpywrafdd,135.6,Not Applicable
Department for Business Innovation and Skills,Intellectual Property Office,14/05/2015,Career Development Services,"People, Places and Services Directorate",Www.Computeraidrai,H57720150516qpywrafdd,135.6,Not Applicable
Department for Business Innovation and Skills,Intellectual Property Office,14/05/2015,Career Development Services,"People, Places and Services Directorate",Www.Computeraidrai,H57720150516qpywrafdd,135.6,Not Applicable
Department for Business Innovation and Skills,Intellectual Property Office,14/05/2015,Career Development Services,"People, Places and Services Directorate",Www.Computeraidrai,H57720150516ubqyyggts,169.5,Not Applicable
Department for Business Innovation and Skills,Intellectual Property Office,14/05/2015,Career Development Services,"People, Places and Services Directorate",Www.Computeraidrai,H57720150516ubqyyggts,169.5,Not Applicable
Department for Business Innovation and Skills,Intellectual Property Office,14/05/2015,Career Development Services,"People, Places and Services Directorate",Www.Computeraidrai,H57720150516ubqyyggts,169.5,Not Applicable
Department for Business Innovation and Skills,Intellectual Property Office,14/05/2015,Career Development Services,"People, Places and Services Directorate",Www.Computeraidrai,H57720150516ubqyyggts,169.5,Not Applicable
Department for Business Innovation and Skills,Intellectual Property Office,14/05/2015,Career Development Services,"People, Places and Services Directorate",Www.Computeraidrai,H57720150516qibycyoww,169.5,Not Applicable
Department for Business Innovation and Skills,Intellectual Property Office,14/05/2015,Career Development Services,"People, Places and Services Directorate",Www.Computeraidrai,H57720150516qibycyoww,169.5,Not Applicable
Department for Business Innovation and Skills,Intellectual Property Office,14/05/2015,Career Development Services,"People, Places and Services Directorate",Www.Computeraidrai,H57720150516qibycyoww,169.5,Not Applicable
Department for Business Innovation and Skills,Intellectual Property Office,14/05/2015,Career Development Services,"People, Places and Services Directorate",Www.Computeraidrai,H57720150516qibycyoww,169.5,Not Applicable
Department for Business Innovation and Skills,Intellectual Property Office,07/05/2015,Career Development Services,"People, Places and Services Directorate",Amazon UK Retail,H57720150509sddzjipmv,22.7,Not Applicable
Department for Business Innovation and Skills,Intellectual Property Office,07/05/2015,Career Development Services,"People, Places and Services Directorate",Opp Ltd Sterling Vt,H57720150509tcxhpgguj,142.8,Not Applicable
Department for Business Innovation and Skills,Intellectual Property Office,05/05/2015,Career Development Services,"People, Places and Services Directorate",Opp Ltd Sterling Vt,H57720150507fmwentabn,558,Not Applicable
Department for Business Innovation and Skills,Intellectual Property Office,01/05/2015,Career Development Services,"People, Places and Services Directorate",Opp Ltd Sterling Vt,H57720150505xunhqkbdm,214.4,Not Applicable
Department for Business Innovation and Skills,Intellectual Property Office,25/05/2015,Books,"People, Places and Services Directorate","Amazon Svcs Europe,sar",H57720150527iftcbdegd,6.71,Not Applicable
Department for Business Innovation and Skills,Intellectual Property Office,22/05/2015,Books,"People, Places and Services Directorate","Amazon Svcs Europe,sar",H57720150526coyhjghts,4.4,Not Applicable
Department for Business Innovation and Skills,Intellectual Property Office,22/05/2015,Books,"People, Places and Services Directorate",Amazon UK Marketplace,H57720150526gbyiakejx,8.05,Not Applicable
Department for Business Innovation and Skills,Intellectual Property Office,22/05/2015,Books,"People, Places and Services Directorate","Amazon Svcs Europe,sar",H57720150526kjlrelexn,14.03,Not Applicable
Department for Business Innovation and Skills,Intellectual Property Office,21/05/2015,Books,"People, Places and Services Directorate","Amazon Svcs Europe,sar",H57720150523hjgoutowg,57.54,Not Applicable
Department for Business Innovation and Skills,Intellectual Property Office,11/05/2015,Books,"People, Places and Services Directorate",Opp Ltd Sterling Vt,H57720150513uavknulrr,136.5,Not Applicable
Department for Business Innovation and Skills,Intellectual Property Office,07/05/2015,Entertainment,"People, Places and Services Directorate",B&q Direct,H57720150509ttdufsofm,5,Not Applicable
Department for Business Innovation and Skills,Intellectual Property Office,21/05/2015,Entertainment,"People, Places and Services Directorate",One Stop 0487,H57720150523ksexcxbch,6,Not Applicable
Department for Business Innovation and Skills,Intellectual Property Office,05/05/2015,Legal Consultancy,"People, Places and Services Directorate",Eb Continuous Improve,H57720150507gdasybhms,234,Not Applicable
Department for Business Innovation and Skills,Intellectual Property Office,11/05/2015,Career Development Services,"People, Places and Services Directorate",Pmoconference.Co.Uk,H57720150513wwxdilmpg,1020,Not Applicable
Department for Business Innovation and Skills,Intellectual Property Office,19/05/2015,Office Supplies,"People, Places and Services Directorate",Ability (Cardiff) Ltd,H57720150521pxvxuguyu,154,Not Applicable
Department for Business Innovation and Skills,Intellectual Property Office,15/05/2015,Office Supplies,"People, Places and Services Directorate",Amazon UK Retail,H57720150519kmvwvvxdb,-5.95,Not Applicable
Department for Business Innovation and Skills,Intellectual Property Office,14/05/2015,Office Supplies,"People, Places and Services Directorate",H.C.Slingsby Plc,H57720150516qefhxohts,263.99,Not Applicable
Department for Business Innovation and Skills,Intellectual Property Office,12/05/2015,Office Supplies,"People, Places and Services Directorate",Amazon UK Marketplace,H57720150514uzregelxh,41.79,Not Applicable
Department for Business Innovation and Skills,Intellectual Property Office,11/05/2015,Office Supplies,"People, Places and Services Directorate",Amazon UK Retail,H57720150513wspltspgx,5.95,Not Applicable
Department for Business Innovation and Skills,Intellectual Property Office,30/04/2015,Office Supplies,"People, Places and Services Directorate",South Wales Suppliers Lt,H57720150502mgvqjgmxk,31.2,Not Applicable
Department for Business Innovation and Skills,Intellectual Property Office,06/05/2015,Office Supplies,"People, Places and Services Directorate",Matalan,H57720150508auhsqvfwl,8,Not Applicable
Department for Business Innovation and Skills,Intellectual Property Office,05/05/2015,Office Supplies,"People, Places and Services Directorate",Don Ruffles Ltd,H57720150507shbnvepiz,881.1,Not Applicable
Department for Business Innovation and Skills,Intellectual Property Office,19/05/2015,Office Supplies,"People, Places and Services Directorate",Land Registry,H57720150521ziwqwipyu,16.8,Not Applicable
Department for Business Innovation and Skills,Intellectual Property Office,06/05/2015,Office Supplies,"People, Places and Services Directorate",Key Industrial Equipment,H57720150509uctigveqk,124.8,Not Applicable
Department for Business Innovation and Skills,Intellectual Property Office,06/05/2015,Office Supplies,"People, Places and Services Directorate",The Edge,H57720150508hgjfskukl,55.8,Not Applicable
Department for Business Innovation and Skills,Intellectual Property Office,21/05/2015,Office Supplies,"People, Places and Services Directorate",Amazon UK Retail,H57720150523gzayznluy,11.43,Not Applicable
Department for Business Innovation and Skills,Intellectual Property Office,20/05/2015,Office Supplies,"People, Places and Services Directorate",Newey & Eyre,H57720150522onfzeejhv,642.94,Not Applicable
Department for Business Innovation and Skills,Intellectual Property Office,19/05/2015,Office Supplies,"People, Places and Services Directorate","Amazon Svcs Europe,sar",H57720150521djghvwwml,8.37,Not Applicable
Department for Business Innovation and Skills,Intellectual Property Office,19/05/2015,Office Supplies,"People, Places and Services Directorate",Sig,H57720150521ouabaannr,367.69,Not Applicable
Department for Business Innovation and Skills,Intellectual Property Office,18/05/2015,Office Supplies,"People, Places and Services Directorate",South Wales Suppliers Lt,H57720150520gumadqpxp,948,Not Applicable
Department for Business Innovation and Skills,Intellectual Property Office,17/05/2015,Office Supplies,"People, Places and Services Directorate","Amazon Svcs Europe,sar",H57720150519vgxroescl,21.99,Not Applicable
Department for Business Innovation and Skills,Intellectual Property Office,15/05/2015,Office Supplies,"People, Places and Services Directorate",Bush Healthcare Ltd,H57720150519ycnzdjelg,189,Not Applicable
Department for Business Innovation and Skills,Intellectual Property Office,12/05/2015,Office Supplies,"People, Places and Services Directorate",Boardsdirect.Co.Uk,H57720150514nylqhkqln,102,Not Applicable
Department for Business Innovation and Skills,Intellectual Property Office,08/05/2015,Office Supplies,"People, Places and Services Directorate",Sig,H57720150512rrjoruwkl,437.26,Not Applicable
Department for Business Innovation and Skills,Intellectual Property Office,10/05/2015,Office Supplies,"People, Places and Services Directorate","Amazon Svcs Europe,sar",H57720150512xmddyzxdc,22.99,Not Applicable
Department for Business Innovation and Skills,Intellectual Property Office,07/05/2015,Office Supplies,"People, Places and Services Directorate",Amazon UK Retail,H57720150509nwjtpyarb,31.01,Not Applicable
Department for Business Innovation and Skills,Intellectual Property Office,07/05/2015,Office Supplies,"People, Places and Services Directorate","Amazon Svcs Europe,sar",H57720150509xolribexh,33.94,Not Applicable
Department for Business Innovation and Skills,Intellectual Property Office,06/05/2015,Office Supplies,"People, Places and Services Directorate",Griffiths Signs & Eqip,H57720150508bnkmklifr,94.8,Not Applicable
Department for Business Innovation and Skills,Intellectual Property Office,06/05/2015,Office Supplies,"People, Places and Services Directorate","Amazon Svcs Europe,sar",H57720150508hmytvbvya,14.98,Not Applicable
Department for Business Innovation and Skills,Intellectual Property Office,06/05/2015,Office Supplies,"People, Places and Services Directorate","Amazon Svcs Europe,sar",H57720150508qpoklsyqj,14.98,Not Applicable
Department for Business Innovation and Skills,Intellectual Property Office,01/05/2015,Equity Withdrawal,"People, Places and Services Directorate",Healthy Workstations Ltd,H57720150505gunpbjmvg,177.6,Not Applicable
Department for Business Innovation and Skills,Intellectual Property Office,07/05/2015,Relocation & Removal Service,"People, Places and Services Directorate",Naturalresourceswales.,H57720150509xzqfsutxl,105,Not Applicable
Department for Business Innovation and Skills,Intellectual Property Office,05/05/2015,Minor Works-Goods,"People, Places and Services Directorate",Screwfix,H57720150507uuenucegp,57.93,Not Applicable
Department for Business Innovation and Skills,Intellectual Property Office,08/05/2015,Other,"People, Places and Services Directorate",Healthy Workstations Ltd,H57720150512oniflojjs,41.9,Not Applicable
Department for Business Innovation and Skills,Intellectual Property Office,13/05/2015,Other,"People, Places and Services Directorate",Stk*shutterstock.Com,H57720150515pqdhnkjvl,16.8,Not Applicable
Department for Business Innovation and Skills,Intellectual Property Office,30/04/2015,Minor Works-Goods,"People, Places and Services Directorate",Sig,H57720150502huflgjlao,909.31,Not Applicable
Department for Business Innovation and Skills,Intellectual Property Office,30/04/2015,Minor Works-Goods,"People, Places and Services Directorate",Sig,H57720150502peodvsccq,5288.04,Not Applicable
Department for Business Innovation and Skills,Intellectual Property Office,06/05/2015,Books,"People, Places and Services Directorate",Amazon UK Retail,H57720150508qibgjaemc,22.12,Not Applicable
Department for Business Innovation and Skills,Intellectual Property Office,12/05/2015,T&S UK,Patents Directorate,Ncp Cardiff Airport,H57720150514zqvnicekt,23.49,Not Applicable
Department for Business Innovation and Skills,Intellectual Property Office,01/05/2015,T&S O-seas excl EPOQUE,Patents Directorate,Hrg UK Inm165746072,H57720150508vzlpcdnul,5.55,Not Applicable
Department for Business Innovation and Skills,Intellectual Property Office,29/04/2015,T&S O-seas excl EPOQUE,Patents Directorate,Hrg UK Inm165744252,H57720150505ilexyybdn,5.71,Not Applicable
Department for Business Innovation and Skills,Intellectual Property Office,29/04/2015,T&S O-seas excl EPOQUE,Patents Directorate,Aerling,H57720150502iggeiduws,69.96,Not Applicable
Department for Business Innovation and Skills,Intellectual Property Office,29/04/2015,T&S O-seas excl EPOQUE,Patents Directorate,Aerling,H57720150502zdojvfxin,98.97,Not Applicable
Department for Business Innovation and Skills,Intellectual Property Office,14/05/2015,T&S O-seas excl EPOQUE,Patents Directorate,Hrg UK Inm165756292,H57720150520skxzpxlhe,5.73,Not Applicable
Department for Business Innovation and Skills,Intellectual Property Office,14/05/2015,T&S O-seas excl EPOQUE,Patents Directorate,Easyjet,H57720150516vshwfykyo,101.28,Not Applicable
Department for Business Innovation and Skills,Intellectual Property Office,30/04/2015,T&S O-seas excl EPOQUE,Patents Directorate,Eurostar Internet,H57720150502sjqdsejqr,87.5,Not Applicable
Department for Business Innovation and Skills,Intellectual Property Office,12/05/2015,T&S O-seas excl EPOQUE,Patents Directorate,Easyjet,H57720150515ocsvgqqvk,35.7,Not Applicable
Department for Business Innovation and Skills,Intellectual Property Office,13/05/2015,Books,Patents Directorate,Amazon UK Retail,H57720150515tulrhlsen,69.99,Not Applicable
Department for Business Innovation and Skills,Intellectual Property Office,12/05/2015,T&S O-seas excl EPOQUE,Patents Directorate,Hrg UK Inm165754558,H57720150519kyyykkdkn,9.42,Not Applicable
Department for Business Innovation and Skills,Intellectual Property Office,06/05/2015,T&S UK,Patents Directorate,Hrg UK Inm165748919,H57720150512yoextqpzw,6.27,Not Applicable
Department for Business Innovation and Skills,Intellectual Property Office,06/05/2015,T&S UK,Patents Directorate,Hrg UK Inm165748912,H57720150512tnrukvoat,6.27,Not Applicable
Department for Business Innovation and Skills,Intellectual Property Office,06/05/2015,T&S UK,Patents Directorate,Easyjet,H57720150508djbukvsdq,190.31,Not Applicable
Department for Business Innovation and Skills,Intellectual Property Office,06/05/2015,T&S UK,Patents Directorate,Easyjet,H57720150508euduevgzn,190.31,Not Applicable
Department for Business Innovation and Skills,Intellectual Property Office,15/05/2015,Books,Patents Directorate,Abebooks.Com,H57720150520jadqbkdhn,21.49,Not Applicable
Department for Business Innovation and Skills,Intellectual Property Office,29/04/2015,Overseas Patent Specifications,Patents Directorate,Intellectual Prop. Ofc,H57720150512xsdfgzrhk,-230,Not Applicable
Department for Business Innovation and Skills,Intellectual Property Office,28/04/2015,T&S O-seas excl EPOQUE,Trade Marks Directorate,Hrg UK Inm165743160,H57720150502gcubvbqky,6.16,Not Applicable
Department for Business Innovation and Skills,Intellectual Property Office,07/05/2015,T&S O-seas excl EPOQUE,Trade Marks Directorate,Hrg UK Inm165749911,H57720150513ptjsgrxys,14.85,Not Applicable
Department for Business Innovation and Skills,Intellectual Property Office,07/05/2015,T&S O-seas excl EPOQUE,Trade Marks Directorate,Hrg UK Inm165749912,H57720150513soenxfcjk,15.26,Not Applicable
Department for Business Innovation and Skills,Intellectual Property Office,07/05/2015,T&S O-seas excl EPOQUE,Trade Marks Directorate,Ryanair,H57720150512hrciruhjf,154.01,Not Applicable
Department for Business Innovation and Skills,Intellectual Property Office,07/05/2015,T&S O-seas excl EPOQUE,Trade Marks Directorate,Bristol Airport Limite,H57720150509gxoamkigx,56.89,Not Applicable
Department for Business Innovation and Skills,Intellectual Property Office,07/05/2015,T&S O-seas excl EPOQUE,Trade Marks Directorate,Easyjet,H57720150509hwivdodoo,86.58,Not Applicable
Department for Business Innovation and Skills,Intellectual Property Office,11/05/2015,T&S O-seas excl EPOQUE,Trade Marks Directorate,Bristol Airport Limite,H57720150513tjsittuvv,49.89,Not Applicable
Department for Business Innovation and Skills,Intellectual Property Office,18/05/2015,Miscellaneous Expenses General,Innovation Directorate,DAN ANTHONY PRESENTATIONS LTD,103,3200,Not Applicable
Department for Business Innovation and Skills,Intellectual Property Office,13/05/2015,Staff Costs,People Places & Serv Direct,Speech Empowered Computing,258,420,Not Applicable
Department for Business Innovation and Skills,Intellectual Property Office,12/05/2015,Miscellaneous Expenses General,People Places & Serv Direct,Speech Empowered Computing,258,420,Not Applicable
Department for Business Innovation and Skills,Intellectual Property Office,18/05/2015,Marketing & Publicity,Innovation Directorate,LONDON MEANS BUSINESS LTD,282,238.8,Not Applicable
Department for Business Innovation and Skills,Intellectual Property Office,21/05/2015,Travel & Subsistence,Trade Marks Directorate,JK ExecutiveTravel,317,180,Not Applicable
Department for Business Innovation and Skills,Intellectual Property Office,28/05/2015,Miscellaneous Expenses General,Patents Directorate,IFG Enterprises Limited,365,2261.76,Not Applicable
Department for Business Innovation and Skills,Intellectual Property Office,26/05/2015,Miscellaneous Expenses General,Finance Directorate,Raspberry Catering Ltd,511,138,Not Applicable
Department for Business Innovation and Skills,Intellectual Property Office,18/05/2015,Marketing & Publicity,Innovation Directorate,HI 2 EVENTS,808,375.6,Not Applicable
Department for Business Innovation and Skills,Intellectual Property Office,27/05/2015,Marketing & Publicity,Innovation Directorate,Yorkshire Mafia Events LLP,1278,1680,Not Applicable
Department for Business Innovation and Skills,Intellectual Property Office,20/05/2015,Staff Costs,"People, Places and Services Directorate",OE Cam LLP,1424,6375.08,Not Applicable
Department for Business Innovation and Skills,Intellectual Property Office,18/05/2015,Marketing & Publicity,Innovation Directorate,THEBESTOFBOLTON,1501,294,Not Applicable
Department for Business Innovation and Skills,Intellectual Property Office,26/05/2015,Staff Costs,"People, Places and Services Directorate",OE Cam LLP,1562,991.06,Not Applicable
Department for Business Innovation and Skills,Intellectual Property Office,26/05/2015,Staff Costs,"People, Places and Services Directorate",OE Cam LLP,1578,2966.12,Not Applicable
Department for Business Innovation and Skills,Intellectual Property Office,18/05/2015,Supporting UK Business,Innovation Directorate,VIRTUOSO LEGAL IP,1641,3000,Not Applicable
Department for Business Innovation and Skills,Intellectual Property Office,12/05/2015,Office Supplies,Finance Directorate,Total Print Finishing Services Ltd,2044,-84.1,Not Applicable
Department for Business Innovation and Skills,Intellectual Property Office,18/05/2015,Supporting UK Business,Innovation Directorate,3volution LLP,2466,3000,Not Applicable
Department for Business Innovation and Skills,Intellectual Property Office,29/05/2015,Supporting UK Business,Innovation Directorate,3volution LLP,2506,3000,Not Applicable
Department for Business Innovation and Skills,Intellectual Property Office,29/05/2015,Information Technology,IT Directorate,ePrint direct,3325,1074,Not Applicable
Department for Business Innovation and Skills,Intellectual Property Office,12/05/2015,Supporting UK Business,Innovation Directorate,Lincoln IP,4398,3000,Not Applicable
Department for Business Innovation and Skills,Intellectual Property Office,14/05/2015,Accommodation,"People, Places and Services Directorate",Acorn Glass & Glazing,4851,1674,Not Applicable
Department for Business Innovation and Skills,Intellectual Property Office,13/05/2015,Accommodation,"People, Places and Services Directorate",Kemp Construction Ltd,6029,56637.6,Not Applicable
Department for Business Innovation and Skills,Intellectual Property Office,26/05/2015,Marketing & Publicity,Innovation Directorate,Swift Hire Ltd,6247,14.7,Not Applicable
Department for Business Innovation and Skills,Intellectual Property Office,21/05/2015,Information Technology,IT Directorate,ION Technologies,6304,1800,Not Applicable
Department for Business Innovation and Skills,Intellectual Property Office,13/05/2015,Information Technology,IT Directorate,Evolve Business Consultancy,6563,10800,Not Applicable
Department for Business Innovation and Skills,Intellectual Property Office,20/05/2015,Travel & Subsistence,Patents Directorate,CREIGIAU TRAVEL,6591,450,Not Applicable
Department for Business Innovation and Skills,Intellectual Property Office,12/05/2015,Marketing & Publicity,Copyright and IP Enforcement Directorate,GENEALOGY EVENTS LTD,7162,480,Not Applicable
Department for Business Innovation and Skills,Intellectual Property Office,20/05/2015,Information Technology,IT Directorate,Questmark Ltd,9157,54,Not Applicable
Department for Business Innovation and Skills,Intellectual Property Office,18/05/2015,Supporting UK Business,Innovation Directorate,Solicitors Title LLP,9173,3000,Not Applicable
Department for Business Innovation and Skills,Intellectual Property Office,12/05/2015,Supporting UK Business,Innovation Directorate,EDCOMS LTD,11809,18960,Not Applicable
Department for Business Innovation and Skills,Intellectual Property Office,11/05/2015,Accommodation,"People, Places and Services Directorate",Wastesavers Ltd,12302,125.4,Not Applicable
Department for Business Innovation and Skills,Intellectual Property Office,18/05/2015,Travel & Subsistence,Copyright and IP Enforcement Directorate,JUMBO OF NEWPORT LTD,12650,384,Not Applicable
Department for Business Innovation and Skills,Intellectual Property Office,20/05/2015,Staff Costs,Patents Directorate,Inside Careers,13254,2880,Not Applicable
Department for Business Innovation and Skills,Intellectual Property Office,18/05/2015,Accommodation,"People, Places and Services Directorate",Rushar Ltd,13854,888,Not Applicable
Department for Business Innovation and Skills,Intellectual Property Office,18/05/2015,Marketing & Publicity,Innovation Directorate,Business Expo Ltd,15012,584,Not Applicable
Department for Business Innovation and Skills,Intellectual Property Office,15/05/2015,Accommodation,"People, Places and Services Directorate",HFX Ltd,25288,2582.46,Not Applicable
Department for Business Innovation and Skills,Intellectual Property Office,18/05/2015,Information Technology,IT Directorate,HFX Ltd,25289,12084,Not Applicable
Department for Business Innovation and Skills,Intellectual Property Office,13/05/2015,Accommodation,"People, Places and Services Directorate",Total Security Protection Ltd,25903,315,Not Applicable
Department for Business Innovation and Skills,Intellectual Property Office,20/05/2015,Accommodation,People Places & Serv Direct,Healthy Workstations Ltd,27153,903.24,Not Applicable
Department for Business Innovation and Skills,Intellectual Property Office,20/05/2015,Accommodation,People Places & Serv Direct,Healthy Workstations Ltd,27154,1014.3,Not Applicable
Department for Business Innovation and Skills,Intellectual Property Office,20/05/2015,Accommodation,People Places & Serv Direct,Healthy Workstations Ltd,27155,625.82,Not Applicable
Department for Business Innovation and Skills,Intellectual Property Office,22/05/2015,Accommodation,People Places & Serv Direct,Healthy Workstations Ltd,27193,714.5,Not Applicable
Department for Business Innovation and Skills,Intellectual Property Office,20/05/2015,Office Supplies,People Places & Serv Direct,FLUID BRANDING LTD,27636,156,Not Applicable
Department for Business Innovation and Skills,Intellectual Property Office,18/05/2015,Marketing & Publicity,Innovation Directorate,Aardman Animations Ltd,30122,3079.2,Not Applicable
Department for Business Innovation and Skills,Intellectual Property Office,20/05/2015,Miscellaneous Expenses General,People Places & Serv Direct,On Your Bike,32949,900,Not Applicable
Department for Business Innovation and Skills,Intellectual Property Office,29/05/2015,Miscellaneous Expenses General,People Places & Serv Direct,On Your Bike,32988,970,Not Applicable
Department for Business Innovation and Skills,Intellectual Property Office,28/05/2015,Miscellaneous Expenses General,Copyright and IP Enforcement Directorate,K International PLC,34998,23.52,Not Applicable
Department for Business Innovation and Skills,Intellectual Property Office,12/05/2015,Office Supplies,"People, Places and Services Directorate",Total Print Finishing Services Ltd,37214,946.8,Not Applicable
Department for Business Innovation and Skills,Intellectual Property Office,12/05/2015,Office Supplies,Finance Directorate,Total Print Finishing Services Ltd,37245,84.1,Not Applicable
Department for Business Innovation and Skills,Intellectual Property Office,12/05/2015,Office Supplies,Finance Directorate,Total Print Finishing Services Ltd,37288,203.06,Not Applicable
Department for Business Innovation and Skills,Intellectual Property Office,29/05/2015,Office Supplies,Finance Directorate,Total Print Finishing Services Ltd,37367,64.08,Not Applicable
Department for Business Innovation and Skills,Intellectual Property Office,12/05/2015,Supporting UK Business,Innovation Directorate,STEPHENS SCOWN LLP,41435,3000,Not Applicable
Department for Business Innovation and Skills,Intellectual Property Office,20/05/2015,Supporting UK Business,Innovation Directorate,STEPHENS SCOWN LLP,41617,3000,Not Applicable
Department for Business Innovation and Skills,Intellectual Property Office,29/05/2015,Supporting UK Business,Innovation Directorate,STEPHENS SCOWN LLP,41949,3000,Not Applicable
Department for Business Innovation and Skills,Intellectual Property Office,29/05/2015,Supporting UK Business,Innovation Directorate,STEPHENS SCOWN LLP,42006,3000,Not Applicable
Department for Business Innovation and Skills,Intellectual Property Office,15/05/2015,Staff Costs,"People, Places and Services Directorate",Stonewall Equality Ltd,47206,468,Not Applicable
Department for Business Innovation and Skills,Intellectual Property Office,26/05/2015,Miscellaneous Expenses General,People Places & Serv Direct,Stonewall Equality Ltd,47327,3000,Not Applicable
Department for Business Innovation and Skills,Intellectual Property Office,08/05/2015,Miscellaneous Expenses General,People Places & Serv Direct,Neil A Regan,52905,167,Not Applicable
Department for Business Innovation and Skills,Intellectual Property Office,11/05/2015,Miscellaneous Expenses General,People Places & Serv Direct,Haydn Walker,52910,60,Not Applicable
Department for Business Innovation and Skills,Intellectual Property Office,20/05/2015,Miscellaneous Expenses General,People Places & Serv Direct,M Williams,52915,20,Not Applicable
Department for Business Innovation and Skills,Intellectual Property Office,20/05/2015,Miscellaneous Expenses General,People Places & Serv Direct,Helen Morgan,52916,80,Not Applicable
Department for Business Innovation and Skills,Intellectual Property Office,20/05/2015,Miscellaneous Expenses General,People Places & Serv Direct,CJ Carter,52917,15,Not Applicable
Department for Business Innovation and Skills,Intellectual Property Office,21/05/2015,Supporting UK Business,International Policy Directorate,A Basunia,52918,277.5,Not Applicable
Department for Business Innovation and Skills,Intellectual Property Office,21/05/2015,Staff Costs,IT Directorate,TL Arthur,52921,325,Not Applicable
Department for Business Innovation and Skills,Intellectual Property Office,21/05/2015,Supporting UK Business,International Policy Directorate,Claire Sng,52922,348.81,Not Applicable
Department for Business Innovation and Skills,Intellectual Property Office,26/05/2015,Miscellaneous Expenses General,People Places & Serv Direct,Neil Richards,52925,20,Not Applicable
Department for Business Innovation and Skills,Intellectual Property Office,27/05/2015,Office Supplies,IT Directorate,Emma M Thomas,52926,138.42,Not Applicable
Department for Business Innovation and Skills,Intellectual Property Office,26/05/2015,Marketing & Publicity,Innovation Directorate,Richard Norman Electrics Ltd,64532,59.4,Not Applicable
Department for Business Innovation and Skills,Intellectual Property Office,18/05/2015,Staff Costs,Innovation Directorate,GovNet Communications,83999,462,Not Applicable
Department for Business Innovation and Skills,Intellectual Property Office,12/05/2015,Supporting UK Business,Innovation Directorate,LAWRIE INTELLECTUAL PROPERTY,106364,3000,Not Applicable
Department for Business Innovation and Skills,Intellectual Property Office,12/05/2015,Supporting UK Business,Innovation Directorate,LAWRIE INTELLECTUAL PROPERTY,106378,3000,Not Applicable
Department for Business Innovation and Skills,Intellectual Property Office,12/05/2015,Supporting UK Business,Innovation Directorate,LAWRIE INTELLECTUAL PROPERTY,106433,3000,Not Applicable
Department for Business Innovation and Skills,Intellectual Property Office,12/05/2015,Supporting UK Business,Innovation Directorate,BERMANS LTD,123064,3000,Not Applicable
Department for Business Innovation and Skills,Intellectual Property Office,15/05/2015,Accommodation,"People, Places and Services Directorate",Thomas Waste Management Ltd,131305,306,Not Applicable
Department for Business Innovation and Skills,Intellectual Property Office,29/05/2015,Accommodation,"People, Places and Services Directorate",Thomas Waste Management Ltd,131521,306,Not Applicable
Department for Business Innovation and Skills,Intellectual Property Office,21/05/2015,Office Supplies,Finance Directorate,Print On Solutions Ltd,131975,416.52,Not Applicable
Department for Business Innovation and Skills,Intellectual Property Office,28/05/2015,Office Supplies,Finance Directorate,Print On Solutions Ltd,132264,2562.48,Not Applicable
Department for Business Innovation and Skills,Intellectual Property Office,12/05/2015,Information Technology,IT Directorate,Fujitsu Services Ltd,203894,17268,Not Applicable
Department for Business Innovation and Skills,Intellectual Property Office,12/05/2015,Information Technology,IT Directorate,Fujitsu Services Ltd,204005,108016.8,Not Applicable
Department for Business Innovation and Skills,Intellectual Property Office,12/05/2015,Staff Costs,IT Directorate,GLOBAL KNOWLEDGE NETWORK TRAINING LTD,264301,2154.6,Not Applicable
Department for Business Innovation and Skills,Intellectual Property Office,12/05/2015,Staff Costs,IT Directorate,GLOBAL KNOWLEDGE NETWORK TRAINING LTD,264302,5389.2,Not Applicable
Department for Business Innovation and Skills,Intellectual Property Office,12/05/2015,Information Technology,IT Directorate,Open Connections Solutions Ltd,270084,193.88,Not Applicable
Department for Business Innovation and Skills,Intellectual Property Office,12/05/2015,Information Technology,IT Directorate,Open Connections Solutions Ltd,270094,1163.3,Not Applicable
Department for Business Innovation and Skills,Intellectual Property Office,12/05/2015,Supporting UK Business,Innovation Directorate,SHULMANS LLP,282532,3000,Not Applicable
Department for Business Innovation and Skills,Intellectual Property Office,18/05/2015,Supporting UK Business,Innovation Directorate,SHULMANS LLP,282533,3000,Not Applicable
Department for Business Innovation and Skills,Intellectual Property Office,20/05/2015,Accommodation,"People, Places and Services Directorate",Iron Mountain UK Ltd,395622,12800.24,Not Applicable
Department for Business Innovation and Skills,Intellectual Property Office,18/05/2015,Information Technology,People Places & Serv Direct,Bytes Software Services Ltd,412174,495.59,Not Applicable
Department for Business Innovation and Skills,Intellectual Property Office,27/05/2015,Staff Costs,People Places & Serv Direct,P&MM Ltd,502733,6125.03,Not Applicable
Department for Business Innovation and Skills,Intellectual Property Office,27/05/2015,Staff Costs,People Places & Serv Direct,P&MM Ltd,502734,58.01,Not Applicable
Department for Business Innovation and Skills,Intellectual Property Office,28/05/2015,Postage & Delivery Costs,"People, Places and Services Directorate",RICO LOGISTICS LTD,744119,22.33,Not Applicable
Department for Business Innovation and Skills,Intellectual Property Office,27/05/2015,Staff Costs,People Places & Serv Direct,P&MM Ltd,1020701,7846.13,Not Applicable
Department for Business Innovation and Skills,Intellectual Property Office,18/05/2015,Supporting UK Business,International Policy Directorate,FOREIGN & COMMONWEALTH OFFICE,1077416,35533.2,Not Applicable
Department for Business Innovation and Skills,Intellectual Property Office,18/05/2015,Supporting UK Business,International Policy Directorate,FOREIGN & COMMONWEALTH OFFICE,1077671,16748.63,Not Applicable
Department for Business Innovation and Skills,Intellectual Property Office,26/05/2015,Supporting UK Business,International Policy Directorate,FOREIGN & COMMONWEALTH OFFICE,1077960,-9710.24,Not Applicable
Department for Business Innovation and Skills,Intellectual Property Office,12/05/2015,Staff Costs,Patents Directorate,Cardiff University,1124745,418.8,Not Applicable
Department for Business Innovation and Skills,Intellectual Property Office,15/05/2015,Postage & Delivery Costs,People Places & Serv Direct,CitySprint (UK) Ltd,1307552,2367.6,Not Applicable
Department for Business Innovation and Skills,Intellectual Property Office,29/05/2015,Information Technology,IT Directorate,Oracle Corporation UK Limited,1473472,2766.18,Not Applicable
Department for Business Innovation and Skills,Intellectual Property Office,29/05/2015,Information Technology,IT Directorate,Oracle Corporation UK Limited,1473473,79.78,Not Applicable
Department for Business Innovation and Skills,Intellectual Property Office,15/05/2015,Accommodation,"People, Places and Services Directorate",Days Rental,1535497,252,Not Applicable
Department for Business Innovation and Skills,Intellectual Property Office,14/05/2015,Accommodation,"People, Places and Services Directorate",Days Rental,1540242,252,Not Applicable
Department for Business Innovation and Skills,Intellectual Property Office,20/05/2015,Misc Expenses Finance,Finance Directorate,G4S Cash Services (UK) Ltd,1816521,563.9,Not Applicable
Department for Business Innovation and Skills,Intellectual Property Office,15/05/2015,Supporting UK Business,Innovation Directorate,Harrison Goddard Foote,2004100,3000,Not Applicable
Department for Business Innovation and Skills,Intellectual Property Office,20/05/2015,Staff Costs,Innovation Directorate,Whitehall & Industry Group,2150103,900,Not Applicable
Department for Business Innovation and Skills,Intellectual Property Office,26/05/2015,Office Machinery,"People, Places and Services Directorate",Danwood Group Ltd,3908692,1716.55,Not Applicable
Department for Business Innovation and Skills,Intellectual Property Office,14/05/2015,Office Supplies,Finance Directorate,Antalis,4718251,624,Not Applicable
Department for Business Innovation and Skills,Intellectual Property Office,14/05/2015,Office Supplies,Finance Directorate,Antalis,4760379,624,Not Applicable
Department for Business Innovation and Skills,Intellectual Property Office,20/05/2015,Office Supplies,Finance Directorate,Antalis,4779208,624,Not Applicable
Department for Business Innovation and Skills,Intellectual Property Office,28/05/2015,Office Supplies,Finance Directorate,Antalis,4807359,624,Not Applicable
Department for Business Innovation and Skills,Intellectual Property Office,28/05/2015,Staff Costs,"People, Places and Services Directorate",CIPFA,5160224,1920,Not Applicable
Department for Business Innovation and Skills,Intellectual Property Office,29/05/2015,Supporting UK Business,Innovation Directorate,Marks & Clerk LLP,7060941,3000,Not Applicable
Department for Business Innovation and Skills,Intellectual Property Office,26/05/2015,Staff Costs,Patents Directorate,Senate House Services,9017136,178.8,Not Applicable
Department for Business Innovation and Skills,Intellectual Property Office,21/05/2015,Accommodation,"People, Places and Services Directorate",Corona Energy,10103385,-984.98,Not Applicable
Department for Business Innovation and Skills,Intellectual Property Office,21/05/2015,Accommodation,"People, Places and Services Directorate",Corona Energy,10103386,2682.12,Not Applicable
Department for Business Innovation and Skills,Intellectual Property Office,21/05/2015,Accommodation,People Places & Serv Direct,Corona Energy,10117128,2294.04,Not Applicable
Department for Business Innovation and Skills,Intellectual Property Office,21/05/2015,Accommodation,"People, Places and Services Directorate",Corona Energy,10117132,723.58,Not Applicable
Department for Business Innovation and Skills,Intellectual Property Office,15/05/2015,Telecoms,IT Directorate,Vodafone Corporate Ltd,13606492,1.93,Not Applicable
Department for Business Innovation and Skills,Intellectual Property Office,12/05/2015,Telecoms,IT Directorate,ZEN INTERNET LIMITED,18429491,30,Not Applicable
Department for Business Innovation and Skills,Intellectual Property Office,11/05/2015,Pay Costs,IT Directorate,ZEN INTERNET LIMITED,18490263,40.78,Not Applicable
Department for Business Innovation and Skills,Intellectual Property Office,11/05/2015,Telecoms,IT Directorate,ZEN INTERNET LIMITED,18494328,108,Not Applicable
Department for Business Innovation and Skills,Intellectual Property Office,11/05/2015,Pay Costs,IT Directorate,ZEN INTERNET LIMITED,18494329,156,Not Applicable
Department for Business Innovation and Skills,Intellectual Property Office,11/05/2015,Pay Costs,IT Directorate,ZEN INTERNET LIMITED,18498826,14.1,Not Applicable
Department for Business Innovation and Skills,Intellectual Property Office,15/05/2015,Telecoms,IT Directorate,ZEN INTERNET LIMITED,18517783,30,Not Applicable
Department for Business Innovation and Skills,Intellectual Property Office,15/05/2015,Telecoms,IT Directorate,ZEN INTERNET LIMITED,18521527,4752.64,Not Applicable
Department for Business Innovation and Skills,Intellectual Property Office,21/05/2015,Telecoms,IT Directorate,ZEN INTERNET LIMITED,18526126,6.11,Not Applicable
Department for Business Innovation and Skills,Intellectual Property Office,21/05/2015,Telecoms,IT Directorate,ZEN INTERNET LIMITED,18531280,30,Not Applicable
Department for Business Innovation and Skills,Intellectual Property Office,26/05/2015,Telecoms,IT Directorate,ZEN INTERNET LIMITED,18550618,186.61,Not Applicable
Department for Business Innovation and Skills,Intellectual Property Office,26/05/2015,Telecoms,IT Directorate,ZEN INTERNET LIMITED,18555994,156,Not Applicable
Department for Business Innovation and Skills,Intellectual Property Office,26/05/2015,Telecoms,IT Directorate,ZEN INTERNET LIMITED,18587280,156,Not Applicable
Department for Business Innovation and Skills,Intellectual Property Office,15/05/2015,Legal & Hearings,People Places & Serv Direct,Capital Law LLP,20030476,826.2,Not Applicable
Department for Business Innovation and Skills,Intellectual Property Office,13/05/2015,Staff Costs,Patents Directorate,University of Liverpool,25122246,600,Not Applicable
Department for Business Innovation and Skills,Intellectual Property Office,18/05/2015,Pay Costs,"People, Places and Services Directorate",Brook Street (UK) Ltd,30139693,421.61,Not Applicable
Department for Business Innovation and Skills,Intellectual Property Office,18/05/2015,Pay Costs,IT Directorate,Brook Street (UK) Ltd,30139693,535.94,Not Applicable
Department for Business Innovation and Skills,Intellectual Property Office,18/05/2015,Pay Costs,Finance Directorate,Brook Street (UK) Ltd,30139693,528.8,Not Applicable
Department for Business Innovation and Skills,Intellectual Property Office,18/05/2015,Pay Costs,Finance Directorate,Brook Street (UK) Ltd,30139693,528.8,Not Applicable
Department for Business Innovation and Skills,Intellectual Property Office,18/05/2015,Pay Costs,Trade Marks Directorate,Brook Street (UK) Ltd,30139693,528.36,Not Applicable
Department for Business Innovation and Skills,Intellectual Property Office,18/05/2015,Pay Costs,"People, Places and Services Directorate",Brook Street (UK) Ltd,30151711,540.34,Not Applicable
Department for Business Innovation and Skills,Intellectual Property Office,18/05/2015,Pay Costs,IT Directorate,Brook Street (UK) Ltd,30151711,321.56,Not Applicable
Department for Business Innovation and Skills,Intellectual Property Office,18/05/2015,Pay Costs,Finance Directorate,Brook Street (UK) Ltd,30151711,528.8,Not Applicable
Department for Business Innovation and Skills,Intellectual Property Office,18/05/2015,Pay Costs,Finance Directorate,Brook Street (UK) Ltd,30151711,528.8,Not Applicable
Department for Business Innovation and Skills,Intellectual Property Office,18/05/2015,Pay Costs,Trade Marks Directorate,Brook Street (UK) Ltd,30151711,526.06,Not Applicable
Department for Business Innovation and Skills,Intellectual Property Office,20/05/2015,Pay Costs,IT Directorate,Brook Street (UK) Ltd,30164056,403.74,Not Applicable
Department for Business Innovation and Skills,Intellectual Property Office,20/05/2015,Pay Costs,Finance Directorate,Brook Street (UK) Ltd,30164056,1175.31,Not Applicable
Department for Business Innovation and Skills,Intellectual Property Office,20/05/2015,Pay Costs,Trade Marks Directorate,Brook Street (UK) Ltd,30164056,441.88,Not Applicable
Department for Business Innovation and Skills,Intellectual Property Office,29/05/2015,Pay Costs,Finance Directorate,Brook Street (UK) Ltd,30176070,1597.95,Not Applicable
Department for Business Innovation and Skills,Intellectual Property Office,29/05/2015,Pay Costs,Trade Marks Directorate,Brook Street (UK) Ltd,30176070,522.54,Not Applicable
Department for Business Innovation and Skills,Intellectual Property Office,15/05/2015,Pay Costs,International Policy Directorate,Brook Street (UK) Ltd,30473711,468,Not Applicable
Department for Business Innovation and Skills,Intellectual Property Office,29/05/2015,Miscellaneous Expenses General,People Places & Serv Direct,EC Harris LLP,75128294,28928.96,Not Applicable
Department for Business Innovation and Skills,Intellectual Property Office,29/05/2015,Miscellaneous Expenses General,People Places & Serv Direct,EC Harris LLP,75128295,20685.84,Not Applicable
Department for Business Innovation and Skills,Intellectual Property Office,29/05/2015,Miscellaneous Expenses General,People Places & Serv Direct,EC Harris LLP,75128296,21942.48,Not Applicable
Department for Business Innovation and Skills,Intellectual Property Office,12/05/2015,Telecoms,IT Directorate,Vodafone Corporate Ltd,75842486,5865.83,Not Applicable
Department for Business Innovation and Skills,Intellectual Property Office,26/05/2015,Telecoms,IT Directorate,Vodafone Corporate Ltd,76215612,4690.77,Not Applicable
Department for Business Innovation and Skills,Intellectual Property Office,20/05/2015,Information Technology,IT Directorate,BluePhoenix Solutions UK Ltd T/A MODERN,104150012,33900,Not Applicable
Department for Business Innovation and Skills,Intellectual Property Office,20/05/2015,Information Technology,IT Directorate,BluePhoenix Solutions UK Ltd T/A MODERN,104150013,525,Not Applicable
Department for Business Innovation and Skills,Intellectual Property Office,20/05/2015,Information Technology,IT Directorate,BluePhoenix Solutions UK Ltd T/A MODERN,104150021,4200,Not Applicable
Department for Business Innovation and Skills,Intellectual Property Office,20/05/2015,Office Supplies,Patents Directorate,British Library,139751353,4081.3,Not Applicable
Department for Business Innovation and Skills,Intellectual Property Office,18/05/2015,Supporting UK Business,Innovation Directorate,CHARLES RUSSELL SPEECHLYS LLP,215010559,3000,Not Applicable
Department for Business Innovation and Skills,Intellectual Property Office,15/05/2015,Supporting UK Business,Copyright and IP Enforcement Directorate,Companies House,249136892,7,Not Applicable
Department for Business Innovation and Skills,Intellectual Property Office,14/05/2015,Miscellaneous Expenses General,Innovation Directorate,TNS UK LTD,260147125,78556.8,Not Applicable
Department for Business Innovation and Skills,Intellectual Property Office,26/05/2015,Office Supplies,Patents Directorate,Thomson Reuters (Professional) Ltd,831700682,36,Not Applicable
Department for Business Innovation and Skills,Intellectual Property Office,26/05/2015,Office Supplies,Patents Directorate,Thomson Reuters (Professional) Ltd,831700683,54,Not Applicable
Department for Business Innovation and Skills,Intellectual Property Office,26/05/2015,Office Supplies,Patents Directorate,Thomson Reuters (Professional) Ltd,831705141,35.4,Not Applicable
Department for Business Innovation and Skills,Intellectual Property Office,26/05/2015,Office Supplies,Patents Directorate,Thomson Reuters (Professional) Ltd,831854873,106.2,Not Applicable
Department for Business Innovation and Skills,Intellectual Property Office,18/05/2015,Pay Costs,"People, Places and Services Directorate",Hays Specialist Recruitment,1005391008,170.42,Not Applicable
Department for Business Innovation and Skills,Intellectual Property Office,20/05/2015,Office Supplies,Finance Directorate,Xerox (UK) Ltd,1604230255,153.76,Not Applicable
Department for Business Innovation and Skills,Intellectual Property Office,20/05/2015,Office Supplies,Finance Directorate,Xerox (UK) Ltd,1604279958,153.76,Not Applicable
Department for Business Innovation and Skills,Intellectual Property Office,14/05/2015,Accommodation,"People, Places and Services Directorate",Neopost Finance Ltd,2015029746,465.1,Not Applicable
Department for Business Innovation and Skills,Intellectual Property Office,20/05/2015,Information Technology,IT Directorate,Computacenter (UK) ltd,3880513171,4987.44,Not Applicable
Department for Business Innovation and Skills,Intellectual Property Office,15/05/2015,Postage & Delivery Costs,People Places & Serv Direct,Parcelforce Worldwide,9049737380,700.32,Not Applicable
Department for Business Innovation and Skills,Intellectual Property Office,29/05/2015,Postage & Delivery Costs,People Places & Serv Direct,Royal Mail,9049789794,1535.4,Not Applicable
Department for Business Innovation and Skills,Intellectual Property Office,29/05/2015,Supporting UK Business,Innovation Directorate,S. William Wallace & Co,0015/15,3000,Not Applicable
Department for Business Innovation and Skills,Intellectual Property Office,12/05/2015,Miscellaneous Expenses General,Copyright and IP Enforcement Directorate,Steve Aylott Consultants Ltd,018-2015,6000,Not Applicable
Department for Business Innovation and Skills,Intellectual Property Office,13/05/2015,Accommodation,"People, Places and Services Directorate",Mitie Facilities Services Ltd,100/90970444,2298.91,Not Applicable
Department for Business Innovation and Skills,Intellectual Property Office,20/05/2015,Accommodation,"People, Places and Services Directorate",Mitie Facilities Services Ltd,100/90980270,1070.64,Not Applicable
Department for Business Innovation and Skills,Intellectual Property Office,18/05/2015,Supporting UK Business,Innovation Directorate,CAMERON INTELLECTUAL PROPERTY LTD,1370/15,3000,Not Applicable
Department for Business Innovation and Skills,Intellectual Property Office,12/05/2015,Supporting UK Business,Innovation Directorate,BEAUFORT RESEARCH,15042BQ,5940,Not Applicable
Department for Business Innovation and Skills,Intellectual Property Office,20/05/2015,Miscellaneous Expenses General,Innovation Directorate,BEAUFORT RESEARCH,15065BQ,5940,Not Applicable
Department for Business Innovation and Skills,Intellectual Property Office,18/05/2015,Supporting UK Business,Innovation Directorate,N.J.AKERS & CO LTD,157054MH,2520,Not Applicable
Department for Business Innovation and Skills,Intellectual Property Office,13/05/2015,Telecoms,IT Directorate,VIRGIN MEDIA,210939001001-20J,53.27,Not Applicable
Department for Business Innovation and Skills,Intellectual Property Office,26/05/2015,Staff Costs,"People, Places and Services Directorate",Teamworks,2424/15/IPO/SUP/,67.5,Not Applicable
Department for Business Innovation and Skills,Intellectual Property Office,28/05/2015,Telecoms,IT Directorate,VIRGIN MEDIA,291879201001-15M,73.86,Not Applicable
Department for Business Innovation and Skills,Intellectual Property Office,20/05/2015,Staff Costs,People Places & Serv Direct,CIPD ENTERPRISES LTD,391516/N,474,Not Applicable
Department for Business Innovation and Skills,Intellectual Property Office,15/05/2015,Telecoms,IT Directorate,Virgin Media,409092201001-07M,490.93,Not Applicable
Department for Business Innovation and Skills,Intellectual Property Office,18/05/2015,Telecoms,IT Directorate,Virgin Media,414650701001-12M,107.76,Not Applicable
Department for Business Innovation and Skills,Intellectual Property Office,15/05/2015,Telecoms,IT Directorate,Virgin Media,414673601001-07M,251.71,Not Applicable
Department for Business Innovation and Skills,Intellectual Property Office,15/05/2015,Telecoms,IT Directorate,Virgin Media,414781801001-07M,112.76,Not Applicable
Department for Business Innovation and Skills,Intellectual Property Office,26/05/2015,Telecoms,IT Directorate,Virgin Media,435496901001-18M,46.8,Not Applicable
Department for Business Innovation and Skills,Intellectual Property Office,18/05/2015,Telecoms,IT Directorate,Virgin Media,441057501001-12M,46.8,Not Applicable
Department for Business Innovation and Skills,Intellectual Property Office,18/05/2015,Telecoms,IT Directorate,Virgin Media,441626201001-12M,41.32,Not Applicable
Department for Business Innovation and Skills,Intellectual Property Office,18/05/2015,Telecoms,IT Directorate,Virgin Media,441626301001-12M,46.82,Not Applicable
Department for Business Innovation and Skills,Intellectual Property Office,20/05/2015,Telecoms,IT Directorate,Virgin Media,441932801001-12M,240,Not Applicable
Department for Business Innovation and Skills,Intellectual Property Office,28/05/2015,Telecoms,IT Directorate,Virgin Media,441976801001-18M,60.76,Not Applicable
Department for Business Innovation and Skills,Intellectual Property Office,18/05/2015,Telecoms,IT Directorate,Virgin Media,442137701001-12M,59,Not Applicable
Department for Business Innovation and Skills,Intellectual Property Office,26/05/2015,Telecoms,IT Directorate,Virgin Media,442140501001-18M,59.11,Not Applicable
Department for Business Innovation and Skills,Intellectual Property Office,26/05/2015,Telecoms,IT Directorate,Virgin Media,442217501001-12M,68.26,Not Applicable
Department for Business Innovation and Skills,Intellectual Property Office,18/05/2015,Telecoms,IT Directorate,Virgin Media,442295501001-12M,67.12,Not Applicable
Department for Business Innovation and Skills,Intellectual Property Office,26/05/2015,Telecoms,IT Directorate,Virgin Media,688514801001-13M,73.51,Not Applicable
Department for Business Innovation and Skills,Intellectual Property Office,28/05/2015,Telecoms,IT Directorate,VIRGIN MEDIA,740075701001-19M,36,Not Applicable
Department for Business Innovation and Skills,Intellectual Property Office,18/05/2015,Telecoms,IT Directorate,VIRGIN MEDIA,745653601001-11M,69.12,Not Applicable
Department for Business Innovation and Skills,Intellectual Property Office,21/05/2015,Accommodation,"People, Places and Services Directorate",EDF ENERGY,7843210000-09MAY,30952.1,Not Applicable
Department for Business Innovation and Skills,Intellectual Property Office,15/05/2015,Accommodation,People Places & Serv Direct,EDF ENERGY,8494210000-01MAR,9.88,Not Applicable
Department for Business Innovation and Skills,Intellectual Property Office,21/05/2015,Accommodation,People Places & Serv Direct,EDF ENERGY,8494210000-09MAY,1488.18,Not Applicable
Department for Business Innovation and Skills,Intellectual Property Office,26/05/2015,Telecoms,IT Directorate,Virgin Media,874902401001-18M,77.15,Not Applicable
Department for Business Innovation and Skills,Intellectual Property Office,15/05/2015,Telecoms,IT Directorate,Virgin Media,917218-01MAY15,544.75,Not Applicable
Department for Business Innovation and Skills,Intellectual Property Office,20/05/2015,Staff Costs,International Policy Directorate,Capita Business Services  Ltd,A64509,351.6,Not Applicable
Department for Business Innovation and Skills,Intellectual Property Office,15/05/2015,Telecoms,IT Directorate,THREE,ADJ95161708,992.92,Not Applicable
Department for Business Innovation and Skills,Intellectual Property Office,15/05/2015,Telecoms,IT Directorate,THREE,AEJ96499629,191.87,Not Applicable
Department for Business Innovation and Skills,Intellectual Property Office,12/05/2015,Miscellaneous Expenses General,Finance Directorate,Advanced Business Solutions,ARBK-99033801,25650,Not Applicable
Department for Business Innovation and Skills,Intellectual Property Office,29/05/2015,Miscellaneous Expenses General,Finance Directorate,Advanced Business Solutions,ARBK-99034187,1140,Not Applicable
Department for Business Innovation and Skills,Intellectual Property Office,11/05/2015,Miscellaneous Expenses General,Finance Directorate,Advanced Business Solutions,ARBK-99034188,11400,Not Applicable
Department for Business Innovation and Skills,Intellectual Property Office,26/05/2015,Miscellaneous Expenses General,Finance Directorate,Advanced Business Solutions,ARIN/99020388,3575.12,Not Applicable
Department for Business Innovation and Skills,Intellectual Property Office,21/05/2015,Miscellaneous Expenses General,Finance Directorate,Advanced Business Solutions,ARIN-99020046,2451.64,Not Applicable
Department for Business Innovation and Skills,Intellectual Property Office,08/05/2015,Miscellaneous Expenses General,People Places & Serv Direct,Personal expenses name witheld,BCS,136,Not Applicable
Department for Business Innovation and Skills,Intellectual Property Office,18/05/2015,Miscellaneous Expenses General,People Places & Serv Direct,Santia Consulting Ltd,C0005230-FIN,480,Not Applicable
Department for Business Innovation and Skills,Intellectual Property Office,18/05/2015,Miscellaneous Expenses General,People Places & Serv Direct,Santia Consulting Ltd,C0005311-FIN,150,Not Applicable
Department for Business Innovation and Skills,Intellectual Property Office,26/05/2015,Miscellaneous Expenses General,People Places & Serv Direct,Santia Consulting Ltd,C0005377-FIN,540,Not Applicable
Department for Business Innovation and Skills,Intellectual Property Office,18/05/2015,Office Supplies,Finance Directorate,Stamps Direct,CA331575,96.95,Not Applicable
Department for Business Innovation and Skills,Intellectual Property Office,13/05/2015,Staff Costs,"People, Places and Services Directorate",Alliance IP Training,CBEBB-IPO-IP,199,Not Applicable
Department for Business Innovation and Skills,Intellectual Property Office,12/05/2015,Staff Costs,Patents Directorate,Alliance IP Training,CCSY-IPO-IP,477.6,Not Applicable
Department for Business Innovation and Skills,Intellectual Property Office,15/05/2015,Miscellaneous Expenses General,Innovation Directorate,Personal expenses name witheld,CT-RES-028-LUKE-,4800,Not Applicable
Department for Business Innovation and Skills,Intellectual Property Office,08/05/2015,Staff Costs,People Places & Serv Direct,Personal expenses name witheld,DETACHED DUTY,591.56,Not Applicable
Department for Business Innovation and Skills,Intellectual Property Office,28/05/2015,Travel & Subsistence,IT Directorate,Personal expenses name witheld,E131512,281.8,Not Applicable
Department for Business Innovation and Skills,Intellectual Property Office,27/05/2015,Postage & Delivery Costs,People Places & Serv Direct,Personal expenses name witheld,E2004725698,45.29,Not Applicable
Department for Business Innovation and Skills,Intellectual Property Office,20/05/2015,Travel & Subsistence,Patents Directorate,Personal expenses name witheld,ER113082,9.3,Not Applicable
Department for Business Innovation and Skills,Intellectual Property Office,18/05/2015,Travel & Subsistence,International Policy Directorate,Personal expenses name witheld,ER129984,3036.57,Not Applicable
Department for Business Innovation and Skills,Intellectual Property Office,22/05/2015,Travel & Subsistence,"People, Places and Services Directorate",Personal expenses name witheld,ER130615,124.2,Not Applicable
Department for Business Innovation and Skills,Intellectual Property Office,15/05/2015,Travel & Subsistence,Copyright and IP Enforcement Directorate,Personal expenses name witheld,ER130616,78.7,Not Applicable
Department for Business Innovation and Skills,Intellectual Property Office,15/05/2015,Travel & Subsistence,Innovation Directorate,Personal expenses name witheld,ER130690,125.18,Not Applicable
Department for Business Innovation and Skills,Intellectual Property Office,28/05/2015,Travel & Subsistence,Finance Directorate,Personal expenses name witheld,ER130729,56.85,Not Applicable
Department for Business Innovation and Skills,Intellectual Property Office,15/05/2015,Travel & Subsistence,People Places & Serv Direct,Personal expenses name witheld,ER130812,147.83,Not Applicable
Department for Business Innovation and Skills,Intellectual Property Office,15/05/2015,Travel & Subsistence,"People, Places and Services Directorate",Personal expenses name witheld,ER130863,29.76,Not Applicable
Department for Business Innovation and Skills,Intellectual Property Office,18/05/2015,Travel & Subsistence,"People, Places and Services Directorate",Personal expenses name witheld,ER130864,200.36,Not Applicable
Department for Business Innovation and Skills,Intellectual Property Office,15/05/2015,Travel & Subsistence,International Policy Directorate,Personal expenses name witheld,ER130880,27.9,Not Applicable
Department for Business Innovation and Skills,Intellectual Property Office,15/05/2015,Travel & Subsistence,International Policy Directorate,Personal expenses name witheld,ER130881,286.37,Not Applicable
Department for Business Innovation and Skills,Intellectual Property Office,15/05/2015,Travel & Subsistence,Innovation Directorate,Personal expenses name witheld,ER130884,178.2,Not Applicable
Department for Business Innovation and Skills,Intellectual Property Office,15/05/2015,Travel & Subsistence,IT Directorate,Personal expenses name witheld,ER130886,9.3,Not Applicable
Department for Business Innovation and Skills,Intellectual Property Office,15/05/2015,Travel & Subsistence,People Places & Serv Direct,Personal expenses name witheld,ER130902,9.9,Not Applicable
Department for Business Innovation and Skills,Intellectual Property Office,18/05/2015,Travel & Subsistence,International Policy Directorate,Personal expenses name witheld,ER130903,214.79,Not Applicable
Department for Business Innovation and Skills,Intellectual Property Office,15/05/2015,Travel & Subsistence,Copyright and IP Enforcement Directorate,Personal expenses name witheld,ER130922,5,Not Applicable
Department for Business Innovation and Skills,Intellectual Property Office,15/05/2015,Travel & Subsistence,Innovation Directorate,Personal expenses name witheld,ER130943,173.2,Not Applicable
Department for Business Innovation and Skills,Intellectual Property Office,15/05/2015,Travel & Subsistence,Innovation Directorate,Personal expenses name witheld,ER130946,13.9,Not Applicable
Department for Business Innovation and Skills,Intellectual Property Office,15/05/2015,Travel & Subsistence,International Policy Directorate,Personal expenses name witheld,ER130947,21.8,Not Applicable
Department for Business Innovation and Skills,Intellectual Property Office,15/05/2015,Travel & Subsistence,International Policy Directorate,Personal expenses name witheld,ER130949,9.3,Not Applicable
Department for Business Innovation and Skills,Intellectual Property Office,15/05/2015,Travel & Subsistence,People Places & Serv Direct,Personal expenses name witheld,ER130950,165.4,Not Applicable
Department for Business Innovation and Skills,Intellectual Property Office,15/05/2015,Travel & Subsistence,Finance Directorate,Personal expenses name witheld,ER130951,18.27,Not Applicable
Department for Business Innovation and Skills,Intellectual Property Office,15/05/2015,Travel & Subsistence,International Policy Directorate,Personal expenses name witheld,ER130954,493.58,Not Applicable
Department for Business Innovation and Skills,Intellectual Property Office,15/05/2015,Travel & Subsistence,People Places & Serv Direct,Personal expenses name witheld,ER130955,9.45,Not Applicable
Department for Business Innovation and Skills,Intellectual Property Office,15/05/2015,Travel & Subsistence,Innovation Directorate,Personal expenses name witheld,ER130958,424.88,Not Applicable
Department for Business Innovation and Skills,Intellectual Property Office,15/05/2015,Travel & Subsistence,Trade Marks Directorate,Personal expenses name witheld,ER130959,301.76,Not Applicable
Department for Business Innovation and Skills,Intellectual Property Office,15/05/2015,Travel & Subsistence,Innovation Directorate,Personal expenses name witheld,ER130960,56.1,Not Applicable
Department for Business Innovation and Skills,Intellectual Property Office,18/05/2015,Travel & Subsistence,IT Directorate,Personal expenses name witheld,ER130961,219.3,Not Applicable
Department for Business Innovation and Skills,Intellectual Property Office,15/05/2015,Travel & Subsistence,Innovation Directorate,Personal expenses name witheld,ER130962,93.15,Not Applicable
Department for Business Innovation and Skills,Intellectual Property Office,15/05/2015,Travel & Subsistence,Innovation Directorate,Personal expenses name witheld,ER130963,89.8,Not Applicable
Department for Business Innovation and Skills,Intellectual Property Office,18/05/2015,Travel & Subsistence,International Policy Directorate,Personal expenses name witheld,ER130964,152.9,Not Applicable
Department for Business Innovation and Skills,Intellectual Property Office,15/05/2015,Travel & Subsistence,Innovation Directorate,Personal expenses name witheld,ER130965,9.25,Not Applicable
Department for Business Innovation and Skills,Intellectual Property Office,15/05/2015,Travel & Subsistence,Innovation Directorate,Personal expenses name witheld,ER130966,14.3,Not Applicable
Department for Business Innovation and Skills,Intellectual Property Office,15/05/2015,Travel & Subsistence,International Policy Directorate,Personal expenses name witheld,ER130978,17.2,Not Applicable
Department for Business Innovation and Skills,Intellectual Property Office,15/05/2015,Travel & Subsistence,International Policy Directorate,Personal expenses name witheld,ER130979,12.15,Not Applicable
Department for Business Innovation and Skills,Intellectual Property Office,15/05/2015,Travel & Subsistence,Innovation Directorate,Personal expenses name witheld,ER130980,186.35,Not Applicable
Department for Business Innovation and Skills,Intellectual Property Office,15/05/2015,Travel & Subsistence,People Places & Serv Direct,Personal expenses name witheld,ER130981,129,Not Applicable
Department for Business Innovation and Skills,Intellectual Property Office,15/05/2015,Travel & Subsistence,People Places & Serv Direct,Personal expenses name witheld,ER130982,23.9,Not Applicable
Department for Business Innovation and Skills,Intellectual Property Office,15/05/2015,Travel & Subsistence,IT Directorate,Personal expenses name witheld,ER130984,342.3,Not Applicable
Department for Business Innovation and Skills,Intellectual Property Office,15/05/2015,Travel & Subsistence,IT Directorate,Personal expenses name witheld,ER130985,317.55,Not Applicable
Department for Business Innovation and Skills,Intellectual Property Office,18/05/2015,Travel & Subsistence,Patents Directorate,Personal expenses name witheld,ER130986,10.3,Not Applicable
Department for Business Innovation and Skills,Intellectual Property Office,15/05/2015,Travel & Subsistence,Innovation Directorate,Personal expenses name witheld,ER130987,20.65,Not Applicable
Department for Business Innovation and Skills,Intellectual Property Office,15/05/2015,Travel & Subsistence,Innovation Directorate,Personal expenses name witheld,ER131003,210.97,Not Applicable
Department for Business Innovation and Skills,Intellectual Property Office,18/05/2015,Travel & Subsistence,IT Directorate,Personal expenses name witheld,ER131004,12.6,Not Applicable
Department for Business Innovation and Skills,Intellectual Property Office,15/05/2015,Travel & Subsistence,Innovation Directorate,Personal expenses name witheld,ER131005,115.57,Not Applicable
Department for Business Innovation and Skills,Intellectual Property Office,28/05/2015,Travel & Subsistence,International Policy Directorate,Personal expenses name witheld,ER131006,220.66,Not Applicable
Department for Business Innovation and Skills,Intellectual Property Office,15/05/2015,Travel & Subsistence,"People, Places and Services Directorate",Personal expenses name witheld,ER131008,525.56,Not Applicable
Department for Business Innovation and Skills,Intellectual Property Office,15/05/2015,Travel & Subsistence,Copyright and IP Enforcement Directorate,Personal expenses name witheld,ER131009,221.07,Not Applicable
Department for Business Innovation and Skills,Intellectual Property Office,15/05/2015,Travel & Subsistence,Copyright and IP Enforcement Directorate,Personal expenses name witheld,ER131011,68.63,Not Applicable
Department for Business Innovation and Skills,Intellectual Property Office,15/05/2015,Travel & Subsistence,"People, Places and Services Directorate",Personal expenses name witheld,ER131012,17.4,Not Applicable
Department for Business Innovation and Skills,Intellectual Property Office,15/05/2015,Travel & Subsistence,International Policy Directorate,Personal expenses name witheld,ER131024,133.14,Not Applicable
Department for Business Innovation and Skills,Intellectual Property Office,18/05/2015,Travel & Subsistence,Trade Marks Directorate,Personal expenses name witheld,ER131025,105.15,Not Applicable
Department for Business Innovation and Skills,Intellectual Property Office,15/05/2015,Travel & Subsistence,"People, Places and Services Directorate",Personal expenses name witheld,ER131026,13.2,Not Applicable
Department for Business Innovation and Skills,Intellectual Property Office,15/05/2015,Travel & Subsistence,IT Directorate,Personal expenses name witheld,ER131043,25,Not Applicable
Department for Business Innovation and Skills,Intellectual Property Office,18/05/2015,Travel & Subsistence,Patents Directorate,Personal expenses name witheld,ER131084,18.9,Not Applicable
Department for Business Innovation and Skills,Intellectual Property Office,15/05/2015,Travel & Subsistence,IT Directorate,Personal expenses name witheld,ER131085,264.4,Not Applicable
Department for Business Innovation and Skills,Intellectual Property Office,18/05/2015,Travel & Subsistence,International Policy Directorate,Personal expenses name witheld,ER131104,258.29,Not Applicable
Department for Business Innovation and Skills,Intellectual Property Office,15/05/2015,Travel & Subsistence,Copyright and IP Enforcement Directorate,Personal expenses name witheld,ER131106,432.85,Not Applicable
Department for Business Innovation and Skills,Intellectual Property Office,15/05/2015,Travel & Subsistence,Copyright and IP Enforcement Directorate,Personal expenses name witheld,ER131123,32.9,Not Applicable
Department for Business Innovation and Skills,Intellectual Property Office,18/05/2015,Travel & Subsistence,Innovation Directorate,Personal expenses name witheld,ER131144,118.19,Not Applicable
Department for Business Innovation and Skills,Intellectual Property Office,15/05/2015,Travel & Subsistence,Innovation Directorate,Personal expenses name witheld,ER131163,134.29,Not Applicable
Department for Business Innovation and Skills,Intellectual Property Office,18/05/2015,Travel & Subsistence,IT Directorate,Personal expenses name witheld,ER131164,6.14,Not Applicable
Department for Business Innovation and Skills,Intellectual Property Office,18/05/2015,Travel & Subsistence,IT Directorate,Personal expenses name witheld,ER131165,12.05,Not Applicable
Department for Business Innovation and Skills,Intellectual Property Office,18/05/2015,Travel & Subsistence,Copyright and IP Enforcement Directorate,Personal expenses name witheld,ER131166,9.3,Not Applicable
Department for Business Innovation and Skills,Intellectual Property Office,18/05/2015,Travel & Subsistence,Copyright and IP Enforcement Directorate,Personal expenses name witheld,ER131168,11.55,Not Applicable
Department for Business Innovation and Skills,Intellectual Property Office,18/05/2015,Travel & Subsistence,Innovation Directorate,Personal expenses name witheld,ER131169,75.42,Not Applicable
Department for Business Innovation and Skills,Intellectual Property Office,18/05/2015,Travel & Subsistence,IT Directorate,Personal expenses name witheld,ER131170,100.5,Not Applicable
Department for Business Innovation and Skills,Intellectual Property Office,18/05/2015,Travel & Subsistence,Copyright and IP Enforcement Directorate,Personal expenses name witheld,ER131171,222.56,Not Applicable
Department for Business Innovation and Skills,Intellectual Property Office,18/05/2015,Travel & Subsistence,IT Directorate,Personal expenses name witheld,ER131172,70,Not Applicable
Department for Business Innovation and Skills,Intellectual Property Office,18/05/2015,Travel & Subsistence,Patents Directorate,Personal expenses name witheld,ER131173,71.63,Not Applicable
Department for Business Innovation and Skills,Intellectual Property Office,18/05/2015,Travel & Subsistence,Patents Directorate,Personal expenses name witheld,ER131175,179.78,Not Applicable
Department for Business Innovation and Skills,Intellectual Property Office,18/05/2015,Travel & Subsistence,Innovation Directorate,Personal expenses name witheld,ER131176,369.3,Not Applicable
Department for Business Innovation and Skills,Intellectual Property Office,18/05/2015,Travel & Subsistence,Patents Directorate,Personal expenses name witheld,ER131177,160.74,Not Applicable
Department for Business Innovation and Skills,Intellectual Property Office,18/05/2015,Travel & Subsistence,International Policy Directorate,Personal expenses name witheld,ER131178,9,Not Applicable
Department for Business Innovation and Skills,Intellectual Property Office,19/05/2015,Travel & Subsistence,IT Directorate,Personal expenses name witheld,ER131179,191.1,Not Applicable
Department for Business Innovation and Skills,Intellectual Property Office,19/05/2015,Travel & Subsistence,IT Directorate,Personal expenses name witheld,ER131180,308.7,Not Applicable
Department for Business Innovation and Skills,Intellectual Property Office,18/05/2015,Travel & Subsistence,Copyright and IP Enforcement Directorate,Personal expenses name witheld,ER131181,6,Not Applicable
Department for Business Innovation and Skills,Intellectual Property Office,18/05/2015,Travel & Subsistence,IT Directorate,Personal expenses name witheld,ER131183,12.6,Not Applicable
Department for Business Innovation and Skills,Intellectual Property Office,19/05/2015,Travel & Subsistence,IT Directorate,Personal expenses name witheld,ER131184,186.85,Not Applicable
Department for Business Innovation and Skills,Intellectual Property Office,18/05/2015,Travel & Subsistence,Copyright and IP Enforcement Directorate,Personal expenses name witheld,ER131185,11.95,Not Applicable
Department for Business Innovation and Skills,Intellectual Property Office,22/05/2015,Travel & Subsistence,IT Directorate,Personal expenses name witheld,ER131186,212.1,Not Applicable
Department for Business Innovation and Skills,Intellectual Property Office,18/05/2015,Travel & Subsistence,IT Directorate,Personal expenses name witheld,ER131187,222.1,Not Applicable
Department for Business Innovation and Skills,Intellectual Property Office,18/05/2015,Travel & Subsistence,International Policy Directorate,Personal expenses name witheld,ER131188,93.64,Not Applicable
Department for Business Innovation and Skills,Intellectual Property Office,28/05/2015,Travel & Subsistence,Innovation Directorate,Personal expenses name witheld,ER131199,262.7,Not Applicable
Department for Business Innovation and Skills,Intellectual Property Office,15/05/2015,Travel & Subsistence,IT Directorate,Personal expenses name witheld,ER131219,25,Not Applicable
Department for Business Innovation and Skills,Intellectual Property Office,18/05/2015,Travel & Subsistence,Patents Directorate,Personal expenses name witheld,ER131220,240.85,Not Applicable
Department for Business Innovation and Skills,Intellectual Property Office,19/05/2015,Travel & Subsistence,International Policy Directorate,Personal expenses name witheld,ER131221,14.3,Not Applicable
Department for Business Innovation and Skills,Intellectual Property Office,18/05/2015,Travel & Subsistence,Patents Directorate,Personal expenses name witheld,ER131240,462.96,Not Applicable
Department for Business Innovation and Skills,Intellectual Property Office,18/05/2015,Travel & Subsistence,International Policy Directorate,Personal expenses name witheld,ER131259,18.6,Not Applicable
Department for Business Innovation and Skills,Intellectual Property Office,18/05/2015,Travel & Subsistence,International Policy Directorate,Personal expenses name witheld,ER131260,14.7,Not Applicable
Department for Business Innovation and Skills,Intellectual Property Office,18/05/2015,Travel & Subsistence,Patents Directorate,Personal expenses name witheld,ER131262,18.9,Not Applicable
Department for Business Innovation and Skills,Intellectual Property Office,18/05/2015,Travel & Subsistence,International Policy Directorate,Personal expenses name witheld,ER131263,310.45,Not Applicable
Department for Business Innovation and Skills,Intellectual Property Office,19/05/2015,Travel & Subsistence,IT Directorate,Personal expenses name witheld,ER131265,14.65,Not Applicable
Department for Business Innovation and Skills,Intellectual Property Office,28/05/2015,Travel & Subsistence,Patents Directorate,Personal expenses name witheld,ER131285,765.85,Not Applicable
Department for Business Innovation and Skills,Intellectual Property Office,28/05/2015,Travel & Subsistence,Patents Directorate,Personal expenses name witheld,ER131286,210.05,Not Applicable
Department for Business Innovation and Skills,Intellectual Property Office,22/05/2015,Travel & Subsistence,Innovation Directorate,Personal expenses name witheld,ER131287,14.3,Not Applicable
Department for Business Innovation and Skills,Intellectual Property Office,19/05/2015,Travel & Subsistence,Copyright and IP Enforcement Directorate,Personal expenses name witheld,ER131325,5.5,Not Applicable
Department for Business Innovation and Skills,Intellectual Property Office,19/05/2015,Travel & Subsistence,Trade Marks Directorate,Personal expenses name witheld,ER131345,193.65,Not Applicable
Department for Business Innovation and Skills,Intellectual Property Office,19/05/2015,Travel & Subsistence,Patents Directorate,Personal expenses name witheld,ER131346,51.99,Not Applicable
Department for Business Innovation and Skills,Intellectual Property Office,20/05/2015,Travel & Subsistence,Copyright and IP Enforcement Directorate,Personal expenses name witheld,ER131365,573.9,Not Applicable
Department for Business Innovation and Skills,Intellectual Property Office,19/05/2015,Travel & Subsistence,Innovation Directorate,Personal expenses name witheld,ER131385,572.59,Not Applicable
Department for Business Innovation and Skills,Intellectual Property Office,19/05/2015,Travel & Subsistence,International Policy Directorate,Personal expenses name witheld,ER131386,170.1,Not Applicable
Department for Business Innovation and Skills,Intellectual Property Office,19/05/2015,Travel & Subsistence,Innovation Directorate,Personal expenses name witheld,ER131387,288.53,Not Applicable
Department for Business Innovation and Skills,Intellectual Property Office,19/05/2015,Travel & Subsistence,Innovation Directorate,Personal expenses name witheld,ER131388,191.8,Not Applicable
Department for Business Innovation and Skills,Intellectual Property Office,20/05/2015,Travel & Subsistence,IT Directorate,Personal expenses name witheld,ER131405,12.6,Not Applicable
Department for Business Innovation and Skills,Intellectual Property Office,20/05/2015,Travel & Subsistence,IT Directorate,Personal expenses name witheld,ER131406,11.95,Not Applicable
Department for Business Innovation and Skills,Intellectual Property Office,20/05/2015,Travel & Subsistence,Innovation Directorate,Personal expenses name witheld,ER131407,397.96,Not Applicable
Department for Business Innovation and Skills,Intellectual Property Office,20/05/2015,Travel & Subsistence,Copyright and IP Enforcement Directorate,Personal expenses name witheld,ER131410,10.6,Not Applicable
Department for Business Innovation and Skills,Intellectual Property Office,20/05/2015,Travel & Subsistence,Copyright and IP Enforcement Directorate,Personal expenses name witheld,ER131413,10.6,Not Applicable
Department for Business Innovation and Skills,Intellectual Property Office,20/05/2015,Travel & Subsistence,International Policy Directorate,Personal expenses name witheld,ER131414,327.5,Not Applicable
Department for Business Innovation and Skills,Intellectual Property Office,20/05/2015,Travel & Subsistence,"People, Places and Services Directorate",Personal expenses name witheld,ER131416,20.14,Not Applicable
Department for Business Innovation and Skills,Intellectual Property Office,28/05/2015,Travel & Subsistence,Copyright and IP Enforcement Directorate,Personal expenses name witheld,ER131417,18.9,Not Applicable
Department for Business Innovation and Skills,Intellectual Property Office,28/05/2015,Travel & Subsistence,Trade Marks Directorate,Personal expenses name witheld,ER131418,183.65,Not Applicable
Department for Business Innovation and Skills,Intellectual Property Office,20/05/2015,Travel & Subsistence,International Policy Directorate,Personal expenses name witheld,ER131425,165.3,Not Applicable
Department for Business Innovation and Skills,Intellectual Property Office,22/05/2015,Travel & Subsistence,Patents Directorate,Personal expenses name witheld,ER131426,17.2,Not Applicable
Department for Business Innovation and Skills,Intellectual Property Office,22/05/2015,Travel & Subsistence,International Policy Directorate,Personal expenses name witheld,ER131427,374.6,Not Applicable
Department for Business Innovation and Skills,Intellectual Property Office,22/05/2015,Travel & Subsistence,Patents Directorate,Personal expenses name witheld,ER131428,17.2,Not Applicable
Department for Business Innovation and Skills,Intellectual Property Office,22/05/2015,Travel & Subsistence,Patents Directorate,Personal expenses name witheld,ER131429,21.3,Not Applicable
Department for Business Innovation and Skills,Intellectual Property Office,22/05/2015,Travel & Subsistence,Patents Directorate,Personal expenses name witheld,ER131430,18.9,Not Applicable
Department for Business Innovation and Skills,Intellectual Property Office,22/05/2015,Travel & Subsistence,Innovation Directorate,Personal expenses name witheld,ER131431,39.8,Not Applicable
Department for Business Innovation and Skills,Intellectual Property Office,22/05/2015,Travel & Subsistence,"People, Places and Services Directorate",Personal expenses name witheld,ER131447,24.1,Not Applicable
Department for Business Innovation and Skills,Intellectual Property Office,22/05/2015,Travel & Subsistence,IT Directorate,Personal expenses name witheld,ER131466,14.35,Not Applicable
Department for Business Innovation and Skills,Intellectual Property Office,22/05/2015,Travel & Subsistence,Innovation Directorate,Personal expenses name witheld,ER131468,120,Not Applicable
Department for Business Innovation and Skills,Intellectual Property Office,22/05/2015,Travel & Subsistence,Innovation Directorate,Personal expenses name witheld,ER131469,265.39,Not Applicable
Department for Business Innovation and Skills,Intellectual Property Office,22/05/2015,Travel & Subsistence,Innovation Directorate,Personal expenses name witheld,ER131470,34.51,Not Applicable
Department for Business Innovation and Skills,Intellectual Property Office,22/05/2015,Travel & Subsistence,Innovation Directorate,Personal expenses name witheld,ER131486,10,Not Applicable
Department for Business Innovation and Skills,Intellectual Property Office,22/05/2015,Travel & Subsistence,IT Directorate,Personal expenses name witheld,ER131489,9.3,Not Applicable
Department for Business Innovation and Skills,Intellectual Property Office,28/05/2015,Travel & Subsistence,"People, Places and Services Directorate",Personal expenses name witheld,ER131497,31.2,Not Applicable
Department for Business Innovation and Skills,Intellectual Property Office,28/05/2015,Travel & Subsistence,People Places & Serv Direct,Personal expenses name witheld,ER131500,62.2,Not Applicable
Department for Business Innovation and Skills,Intellectual Property Office,28/05/2015,Travel & Subsistence,Patents Directorate,Personal expenses name witheld,ER131501,864.25,Not Applicable
Department for Business Innovation and Skills,Intellectual Property Office,28/05/2015,Travel & Subsistence,International Policy Directorate,Personal expenses name witheld,ER131502,124.15,Not Applicable
Department for Business Innovation and Skills,Intellectual Property Office,28/05/2015,Travel & Subsistence,IT Directorate,Personal expenses name witheld,ER131507,236.35,Not Applicable
Department for Business Innovation and Skills,Intellectual Property Office,28/05/2015,Travel & Subsistence,Innovation Directorate,Personal expenses name witheld,ER131509,521.01,Not Applicable
Department for Business Innovation and Skills,Intellectual Property Office,28/05/2015,Travel & Subsistence,Copyright and IP Enforcement Directorate,Personal expenses name witheld,ER131510,13.8,Not Applicable
Department for Business Innovation and Skills,Intellectual Property Office,28/05/2015,Travel & Subsistence,People Places & Serv Direct,Personal expenses name witheld,ER131511,7.7,Not Applicable
Department for Business Innovation and Skills,Intellectual Property Office,28/05/2015,Travel & Subsistence,IT Directorate,Personal expenses name witheld,ER131527,50,Not Applicable
Department for Business Innovation and Skills,Intellectual Property Office,28/05/2015,Travel & Subsistence,IT Directorate,Personal expenses name witheld,ER131529,12.6,Not Applicable
Department for Business Innovation and Skills,Intellectual Property Office,28/05/2015,Travel & Subsistence,IT Directorate,Personal expenses name witheld,ER131530,622,Not Applicable
Department for Business Innovation and Skills,Intellectual Property Office,28/05/2015,Travel & Subsistence,"People, Places and Services Directorate",Personal expenses name witheld,ER131531,122.15,Not Applicable
Department for Business Innovation and Skills,Intellectual Property Office,28/05/2015,Travel & Subsistence,IT Directorate,Personal expenses name witheld,ER131532,287.15,Not Applicable
Department for Business Innovation and Skills,Intellectual Property Office,28/05/2015,Travel & Subsistence,International Policy Directorate,Personal expenses name witheld,ER131537,162.27,Not Applicable
Department for Business Innovation and Skills,Intellectual Property Office,20/05/2015,Information Technology,IT Directorate,Gresham Computer Services Ltd,GCS50905,1819.8,Not Applicable
Department for Business Innovation and Skills,Intellectual Property Office,15/05/2015,Telecoms,IT Directorate,British  Telecom,GP00002104M021&Q,3462.6,Not Applicable
Department for Business Innovation and Skills,Intellectual Property Office,18/05/2015,Miscellaneous Expenses General,Innovation Directorate,Goldborough Studio Ltd,GS0131,174.98,Not Applicable
Department for Business Innovation and Skills,Intellectual Property Office,15/05/2015,Miscellaneous Expenses General,Copyright and IP Enforcement Directorate,Experian Ltd,IEX3001574753,159.18,Not Applicable
Department for Business Innovation and Skills,Intellectual Property Office,28/05/2015,Information Technology,IT Directorate,SANDHILL CONSULTANTS LTD,IN4058249,50652,Not Applicable
Department for Business Innovation and Skills,Intellectual Property Office,12/05/2015,Information Technology,IT Directorate,CSA WAVERY,IN660783,2756.57,Not Applicable
Department for Business Innovation and Skills,Intellectual Property Office,29/05/2015,Supporting UK Business,Innovation Directorate,Burley Law Ltd,INV-0045,3000,Not Applicable
Department for Business Innovation and Skills,Intellectual Property Office,18/05/2015,Marketing & Publicity,Innovation Directorate,Urban Development Music Foundation,INV-0046,1400,Not Applicable
Department for Business Innovation and Skills,Intellectual Property Office,12/05/2015,Information Technology,IT Directorate,Softcat Ltd,INV01132734,31832.86,Not Applicable
Department for Business Innovation and Skills,Intellectual Property Office,28/05/2015,Information Technology,IT Directorate,HORNBILL SERVICE MANAGEMENT LIMITED,INV11364,1726.92,Not Applicable
Department for Business Innovation and Skills,Intellectual Property Office,18/05/2015,Marketing & Publicity,Innovation Directorate,THE BUSINESS GROWTH SHOW LTD,INV-1385,378,Not Applicable
Department for Business Innovation and Skills,Intellectual Property Office,12/05/2015,Accommodation,People Places & Serv Direct,Healthy Workstations Ltd,INV27030,1014.3,Not Applicable
Department for Business Innovation and Skills,Intellectual Property Office,18/05/2015,Marketing & Publicity,Innovation Directorate,PRYSM MEDIA GROUP LTD,INV-3430,1200,Not Applicable
Department for Business Innovation and Skills,Intellectual Property Office,14/05/2015,Information Technology,IT Directorate,SOFTWARE BOX LTD,INV76166,1284.07,Not Applicable
Department for Business Innovation and Skills,Intellectual Property Office,20/05/2015,Information Technology,IT Directorate,SOFTWARE BOX LTD,INV76276,706.55,Not Applicable
Department for Business Innovation and Skills,Intellectual Property Office,18/05/2015,Supporting UK Business,Innovation Directorate,CRACKING ENTERPRISES LTD,IPO/260,33600,Not Applicable
Department for Business Innovation and Skills,Intellectual Property Office,14/05/2015,Staff Costs,"People, Places and Services Directorate",QA Ltd,ISL127427,11400,Not Applicable
Department for Business Innovation and Skills,Intellectual Property Office,18/05/2015,Supporting UK Business,Innovation Directorate,Creation IP Ltd,IV629,3000,Not Applicable
Department for Business Innovation and Skills,Intellectual Property Office,18/05/2015,Supporting UK Business,Innovation Directorate,Creation IP Ltd,IV630,3000,Not Applicable
Department for Business Innovation and Skills,Intellectual Property Office,20/05/2015,Supporting UK Business,Innovation Directorate,Creation IP Ltd,IV648,3000,Not Applicable
Department for Business Innovation and Skills,Intellectual Property Office,20/05/2015,Supporting UK Business,Innovation Directorate,Creation IP Ltd,IV651,3000,Not Applicable
Department for Business Innovation and Skills,Intellectual Property Office,20/05/2015,Staff Costs,IT Directorate,Net Security Training,KTCA-2241,1054.8,Not Applicable
Department for Business Innovation and Skills,Intellectual Property Office,12/05/2015,Supporting UK Business,Innovation Directorate,INNGOT LTD,L1504/4,3000,Not Applicable
Department for Business Innovation and Skills,Intellectual Property Office,20/05/2015,Information Technology,IT Directorate,LA International Computer Consultants Lt,LA326994,2060.32,Not Applicable
Department for Business Innovation and Skills,Intellectual Property Office,20/05/2015,Information Technology,IT Directorate,LA International Computer Consultants Lt,LA326995,4179.96,Not Applicable
Department for Business Innovation and Skills,Intellectual Property Office,20/05/2015,Information Technology,IT Directorate,LA International Computer Consultants Lt,LA326996,2449.22,Not Applicable
Department for Business Innovation and Skills,Intellectual Property Office,20/05/2015,Information Technology,IT Directorate,LA International Computer Consultants Lt,LA326997,2746.27,Not Applicable
Department for Business Innovation and Skills,Intellectual Property Office,20/05/2015,Information Technology,IT Directorate,LA International Computer Consultants Lt,LA326998,2140.82,Not Applicable
Department for Business Innovation and Skills,Intellectual Property Office,20/05/2015,Information Technology,IT Directorate,LA International Computer Consultants Lt,LA327724,1786.51,Not Applicable
Department for Business Innovation and Skills,Intellectual Property Office,20/05/2015,Information Technology,IT Directorate,LA International Computer Consultants Lt,LA327725,2455.52,Not Applicable
Department for Business Innovation and Skills,Intellectual Property Office,20/05/2015,Information Technology,IT Directorate,LA International Computer Consultants Lt,LA327726,2389.86,Not Applicable
Department for Business Innovation and Skills,Intellectual Property Office,20/05/2015,Information Technology,IT Directorate,LA International Computer Consultants Lt,LA327727,2176.37,Not Applicable
Department for Business Innovation and Skills,Intellectual Property Office,20/05/2015,Information Technology,IT Directorate,LA International Computer Consultants Lt,LA327728,2599.62,Not Applicable
Department for Business Innovation and Skills,Intellectual Property Office,20/05/2015,Information Technology,IT Directorate,LA International Computer Consultants Lt,LA327729,2791.43,Not Applicable
Department for Business Innovation and Skills,Intellectual Property Office,20/05/2015,Information Technology,IT Directorate,LA International Computer Consultants Lt,LA328924,1976.15,Not Applicable
Department for Business Innovation and Skills,Intellectual Property Office,20/05/2015,Information Technology,IT Directorate,LA International Computer Consultants Lt,LA328925,3146.88,Not Applicable
Department for Business Innovation and Skills,Intellectual Property Office,20/05/2015,Information Technology,IT Directorate,LA International Computer Consultants Lt,LA328926,3146.88,Not Applicable
Department for Business Innovation and Skills,Intellectual Property Office,20/05/2015,Information Technology,IT Directorate,LA International Computer Consultants Lt,LA328928,2107.8,Not Applicable
Department for Business Innovation and Skills,Intellectual Property Office,20/05/2015,Information Technology,IT Directorate,LA International Computer Consultants Lt,LA328929,2286.96,Not Applicable
Department for Business Innovation and Skills,Intellectual Property Office,28/05/2015,Information Technology,IT Directorate,LA International Computer Consultants Lt,LA329688,2139.86,Not Applicable
Department for Business Innovation and Skills,Intellectual Property Office,28/05/2015,Information Technology,IT Directorate,LA International Computer Consultants Lt,LA329689,1883.11,Not Applicable
Department for Business Innovation and Skills,Intellectual Property Office,28/05/2015,Information Technology,IT Directorate,LA International Computer Consultants Lt,LA329690,2297.45,Not Applicable
Department for Business Innovation and Skills,Intellectual Property Office,28/05/2015,Information Technology,IT Directorate,LA International Computer Consultants Lt,LA329691,3146.88,Not Applicable
Department for Business Innovation and Skills,Intellectual Property Office,28/05/2015,Information Technology,IT Directorate,LA International Computer Consultants Lt,LA329692,11214.7,Not Applicable
Department for Business Innovation and Skills,Intellectual Property Office,28/05/2015,Information Technology,IT Directorate,LA International Computer Consultants Lt,LA329693,2599.62,Not Applicable
Department for Business Innovation and Skills,Intellectual Property Office,28/05/2015,Information Technology,IT Directorate,LA International Computer Consultants Lt,LA329694,2738.03,Not Applicable
Department for Business Innovation and Skills,Intellectual Property Office,26/05/2015,Pay Costs,"People, Places and Services Directorate",Capita Business Services  Ltd,LO10044076,1455.14,Not Applicable
Department for Business Innovation and Skills,Intellectual Property Office,26/05/2015,Information Technology,IT Directorate,Capita Business Services  Ltd,LO10044076,5636.28,Not Applicable
Department for Business Innovation and Skills,Intellectual Property Office,26/05/2015,Information Technology,IT Directorate,Capita Business Services  Ltd,LO10044076,5803.98,Not Applicable
Department for Business Innovation and Skills,Intellectual Property Office,26/05/2015,Information Technology,IT Directorate,Capita Business Services  Ltd,LO10044076,14342.7,Not Applicable
Department for Business Innovation and Skills,Intellectual Property Office,26/05/2015,Information Technology,IT Directorate,Capita Business Services  Ltd,LO10044076,2521.21,Not Applicable
Department for Business Innovation and Skills,Intellectual Property Office,26/05/2015,Information Technology,IT Directorate,Capita Business Services  Ltd,LO10044076,6378.95,Not Applicable
Department for Business Innovation and Skills,Intellectual Property Office,26/05/2015,Information Technology,IT Directorate,Capita Business Services  Ltd,LO10044076,2616.83,Not Applicable
Department for Business Innovation and Skills,Intellectual Property Office,28/05/2015,Telecoms,IT Directorate,Capita Business Services  Ltd,LO10044957,30774.73,Not Applicable
Department for Business Innovation and Skills,Intellectual Property Office,26/05/2015,Marketing & Publicity,Innovation Directorate,The Biz Expos Ltd,LV2015-003,1920,Not Applicable
Department for Business Innovation and Skills,Intellectual Property Office,13/05/2015,Miscellaneous Expenses General,People Places & Serv Direct,Matt Earle,MASTERCLASS,107.75,Not Applicable
Department for Business Innovation and Skills,Intellectual Property Office,11/05/2015,Staff Costs,"People, Places and Services Directorate",British Red Cross,N956439,318,Not Applicable
Department for Business Innovation and Skills,Intellectual Property Office,15/05/2015,Staff Costs,"People, Places and Services Directorate",British Red Cross,N956687,318,Not Applicable
Department for Business Innovation and Skills,Intellectual Property Office,20/05/2015,Staff Costs,"People, Places and Services Directorate",British Red Cross,N960062,318,Not Applicable
Department for Business Innovation and Skills,Intellectual Property Office,12/05/2015,Postage & Delivery Costs,People Places & Serv Direct,Neopost Ltd,NE900335-12MAY15,12000,Not Applicable
Department for Business Innovation and Skills,Intellectual Property Office,14/05/2015,Miscellaneous Expenses General,IT Directorate,Experian Ltd,ON00177631,3600,Not Applicable
Department for Business Innovation and Skills,Intellectual Property Office,15/05/2015,Information Technology,Patents Directorate,Probrand Ltd,OP-I502598,3136.2,Not Applicable
Department for Business Innovation and Skills,Intellectual Property Office,08/05/2015,Miscellaneous Expenses General,People Places & Serv Direct,Personal expenses name witheld,Personal expenses name witheld,63.12,Not Applicable
Department for Business Innovation and Skills,Intellectual Property Office,22/05/2015,Miscellaneous Expenses General,People Places & Serv Direct,Personal expenses name witheld,Personal expenses name witheld,325.5,Not Applicable
Department for Business Innovation and Skills,Intellectual Property Office,28/05/2015,Miscellaneous Expenses General,People Places & Serv Direct,Personal expenses name witheld,Personal expenses name witheld,168.3,Not Applicable
Department for Business Innovation and Skills,Intellectual Property Office,28/05/2015,Travel & Subsistence,Trade Marks Directorate,Personal expenses name witheld,Personal expenses name witheld,15.3,Not Applicable
Department for Business Innovation and Skills,Intellectual Property Office,15/05/2015,Travel & Subsistence,Trade Marks Directorate,Personal expenses name witheld,Personal expenses name witheld,1614.3,Not Applicable
Department for Business Innovation and Skills,Intellectual Property Office,18/05/2015,Travel & Subsistence,Trade Marks Directorate,Personal expenses name witheld,Personal expenses name witheld,1612.3,Not Applicable
Department for Business Innovation and Skills,Intellectual Property Office,22/05/2015,Travel & Subsistence,Trade Marks Directorate,Personal expenses name witheld,Personal expenses name witheld,593.32,Not Applicable
Department for Business Innovation and Skills,Intellectual Property Office,15/05/2015,Travel & Subsistence,Trade Marks Directorate,Personal expenses name witheld,Personal expenses name witheld,142.15,Not Applicable
Department for Business Innovation and Skills,Intellectual Property Office,12/05/2015,Travel & Subsistence,Innovation Directorate,Leasedrive Velo Rental Management Ltd,RHI01316278,107.09,Not Applicable
Department for Business Innovation and Skills,Intellectual Property Office,12/05/2015,Travel & Subsistence,Innovation Directorate,Leasedrive Velo Rental Management Ltd,RHI01321321,107.09,Not Applicable
Department for Business Innovation and Skills,Intellectual Property Office,12/05/2015,Travel & Subsistence,Copyright and IP Enforcement Directorate,Leasedrive Velo Rental Management Ltd,RHI01321322,52.42,Not Applicable
Department for Business Innovation and Skills,Intellectual Property Office,12/05/2015,Travel & Subsistence,Copyright and IP Enforcement Directorate,Leasedrive Velo Rental Management Ltd,RHI01338579,58.48,Not Applicable
Department for Business Innovation and Skills,Intellectual Property Office,12/05/2015,Travel & Subsistence,Innovation Directorate,Leasedrive Velo Rental Management Ltd,RHI01338585,178.99,Not Applicable
Department for Business Innovation and Skills,Intellectual Property Office,12/05/2015,Travel & Subsistence,Innovation Directorate,Leasedrive Velo Rental Management Ltd,RHI01342428,107.09,Not Applicable
Department for Business Innovation and Skills,Intellectual Property Office,12/05/2015,Travel & Subsistence,Copyright and IP Enforcement Directorate,Leasedrive Velo Rental Management Ltd,RHI01346125,5.99,Not Applicable
Department for Business Innovation and Skills,Intellectual Property Office,12/05/2015,Travel & Subsistence,Innovation Directorate,Leasedrive Velo Rental Management Ltd,RHI01357211,107.09,Not Applicable
Department for Business Innovation and Skills,Intellectual Property Office,18/05/2015,Travel & Subsistence,Innovation Directorate,Leasedrive Velo Rental Management Ltd,RHI01367396,107.09,Not Applicable
Department for Business Innovation and Skills,Intellectual Property Office,12/05/2015,Travel & Subsistence,Innovation Directorate,Leasedrive Velo Rental Management Ltd,RHI01367397,107.09,Not Applicable
Department for Business Innovation and Skills,Intellectual Property Office,11/05/2015,Travel & Subsistence,Innovation Directorate,Leasedrive Velo Rental Management Ltd,RHI01367398,134.24,Not Applicable
Department for Business Innovation and Skills,Intellectual Property Office,11/05/2015,Travel & Subsistence,Innovation Directorate,Leasedrive Velo Rental Management Ltd,RHI01370149,53.54,Not Applicable
Department for Business Innovation and Skills,Intellectual Property Office,11/05/2015,Travel & Subsistence,Patents Directorate,Leasedrive Velo Rental Management Ltd,RHI01370150,70.63,Not Applicable
Department for Business Innovation and Skills,Intellectual Property Office,18/05/2015,Travel & Subsistence,Innovation Directorate,Leasedrive Velo Rental Management Ltd,RHI01373085,666.55,Not Applicable
Department for Business Innovation and Skills,Intellectual Property Office,20/05/2015,Travel & Subsistence,Patents Directorate,Leasedrive Velo Rental Management Ltd,RHI01373086,113.74,Not Applicable
Department for Business Innovation and Skills,Intellectual Property Office,15/05/2015,Travel & Subsistence,Patents Directorate,Leasedrive Velo Rental Management Ltd,RHI01373087,77.78,Not Applicable
Department for Business Innovation and Skills,Intellectual Property Office,18/05/2015,Travel & Subsistence,Innovation Directorate,Leasedrive Velo Rental Management Ltd,RHI01373088,134.24,Not Applicable
Department for Business Innovation and Skills,Intellectual Property Office,15/05/2015,Travel & Subsistence,Copyright and IP Enforcement Directorate,Leasedrive Velo Rental Management Ltd,RHI01373090,53.54,Not Applicable
Department for Business Innovation and Skills,Intellectual Property Office,21/05/2015,Travel & Subsistence,Innovation Directorate,Leasedrive Velo Rental Management Ltd,RHI01376778,53.54,Not Applicable
Department for Business Innovation and Skills,Intellectual Property Office,21/05/2015,Travel & Subsistence,Innovation Directorate,Leasedrive Velo Rental Management Ltd,RHI01376779,53.54,Not Applicable
Department for Business Innovation and Skills,Intellectual Property Office,18/05/2015,Travel & Subsistence,Innovation Directorate,Leasedrive Velo Rental Management Ltd,RHI01376780,137.23,Not Applicable
Department for Business Innovation and Skills,Intellectual Property Office,20/05/2015,Travel & Subsistence,Innovation Directorate,Leasedrive Velo Rental Management Ltd,RHI01376782,178.99,Not Applicable
Department for Business Innovation and Skills,Intellectual Property Office,20/05/2015,Travel & Subsistence,Patents Directorate,Leasedrive Velo Rental Management Ltd,RHI01376783,79.79,Not Applicable
Department for Business Innovation and Skills,Intellectual Property Office,26/05/2015,Travel & Subsistence,Patents Directorate,Leasedrive Velo Rental Management Ltd,RHI01380198,14.68,Not Applicable
Department for Business Innovation and Skills,Intellectual Property Office,26/05/2015,Travel & Subsistence,Innovation Directorate,Leasedrive Velo Rental Management Ltd,RHI01380199,53.54,Not Applicable
Department for Business Innovation and Skills,Intellectual Property Office,29/05/2015,Travel & Subsistence,Trade Marks Directorate,Leasedrive Velo Rental Management Ltd,RHI01382169,79.97,Not Applicable
Department for Business Innovation and Skills,Intellectual Property Office,12/05/2015,Accommodation,People Places & Serv Direct,Senator International Ltd,S01232916,885.68,Not Applicable
Department for Business Innovation and Skills,Intellectual Property Office,12/05/2015,Accommodation,People Places & Serv Direct,Senator International Ltd,S01232917,380.78,Not Applicable
Department for Business Innovation and Skills,Intellectual Property Office,12/05/2015,Accommodation,People Places & Serv Direct,Senator International Ltd,S01232919,914.4,Not Applicable
Department for Business Innovation and Skills,Intellectual Property Office,12/05/2015,Accommodation,People Places & Serv Direct,Senator International Ltd,S01234902,348.98,Not Applicable
Department for Business Innovation and Skills,Intellectual Property Office,18/05/2015,Accommodation,People Places & Serv Direct,Senator International Ltd,S01237145,215.54,Not Applicable
Department for Business Innovation and Skills,Intellectual Property Office,18/05/2015,Accommodation,People Places & Serv Direct,Senator International Ltd,S01237147,2019.6,Not Applicable
Department for Business Innovation and Skills,Intellectual Property Office,18/05/2015,Accommodation,People Places & Serv Direct,Senator International Ltd,S01238704,1705.92,Not Applicable
Department for Business Innovation and Skills,Intellectual Property Office,18/05/2015,Accommodation,People Places & Serv Direct,Senator International Ltd,S01238705,592.43,Not Applicable
Department for Business Innovation and Skills,Intellectual Property Office,20/05/2015,Accommodation,People Places & Serv Direct,Senator International Ltd,S01240294,357.66,Not Applicable
Department for Business Innovation and Skills,Intellectual Property Office,18/05/2015,Miscellaneous Expenses General,People Places & Serv Direct,Iron Mountain UK Ltd,SB44342,2047.9,Not Applicable
Department for Business Innovation and Skills,Intellectual Property Office,26/05/2015,Miscellaneous Expenses General,People Places & Serv Direct,UK Shared Business Services Ltd,SBS 12089,35429.92,Not Applicable
Department for Business Innovation and Skills,Intellectual Property Office,21/05/2015,Accommodation,"People, Places and Services Directorate",HC Slingsby PLC,SI1092114,414,Not Applicable
Department for Business Innovation and Skills,Intellectual Property Office,26/05/2015,Marketing & Publicity,Innovation Directorate,V Media Ltd,SI14-20443,432,Not Applicable
Department for Business Innovation and Skills,Intellectual Property Office,26/05/2015,Marketing & Publicity,Innovation Directorate,i2i Events Ltd,SIN105355,816,Not Applicable
Department for Business Innovation and Skills,Intellectual Property Office,15/05/2015,Miscellaneous Expenses General,Copyright and IP Enforcement Directorate,TREBLE 5 TREBLE 1 LTD,SIT002813,6000,Not Applicable
Department for Business Innovation and Skills,Intellectual Property Office,18/05/2015,Marketing & Publicity,Innovation Directorate,Innov8 Conference Services,T283,180,Not Applicable
Department for Business Innovation and Skills,Intellectual Property Office,11/05/2015,Travel & Subsistence,"People, Places and Services Directorate",Veezu Ltd T/A Dragon Taxis (Newport),TAXIS APR15,78,Not Applicable
Department for Business Innovation and Skills,Intellectual Property Office,11/05/2015,Travel & Subsistence,"People, Places and Services Directorate",Veezu Ltd T/A Dragon Taxis (Newport),TAXIS APR15,80.4,Not Applicable
Department for Business Innovation and Skills,Intellectual Property Office,11/05/2015,Travel & Subsistence,Copyright and IP Enforcement Directorate,Veezu Ltd T/A Dragon Taxis (Newport),TAXIS APR15,165.3,Not Applicable
Department for Business Innovation and Skills,Intellectual Property Office,11/05/2015,Travel & Subsistence,Innovation Directorate,Veezu Ltd T/A Dragon Taxis (Newport),TAXIS APR15,7.8,Not Applicable
Department for Business Innovation and Skills,Intellectual Property Office,11/05/2015,Travel & Subsistence,Copyright and IP Enforcement Directorate,Veezu Ltd T/A Dragon Taxis (Newport),TAXIS APR15,147,Not Applicable
Department for Business Innovation and Skills,Intellectual Property Office,11/05/2015,Travel & Subsistence,Finance Directorate,Veezu Ltd T/A Dragon Taxis (Newport),TAXIS APR15,7.8,Not Applicable
Department for Business Innovation and Skills,Intellectual Property Office,11/05/2015,Travel & Subsistence,Innovation Directorate,Veezu Ltd T/A Dragon Taxis (Newport),TAXIS APR15,35.4,Not Applicable
Department for Business Innovation and Skills,Intellectual Property Office,11/05/2015,Travel & Subsistence,International Policy Directorate,Veezu Ltd T/A Dragon Taxis (Newport),TAXIS APR15,97.2,Not Applicable
Department for Business Innovation and Skills,Intellectual Property Office,11/05/2015,Travel & Subsistence,IT Directorate,Veezu Ltd T/A Dragon Taxis (Newport),TAXIS APR15,39,Not Applicable
Department for Business Innovation and Skills,Intellectual Property Office,11/05/2015,Travel & Subsistence,People Places & Serv Direct,Veezu Ltd T/A Dragon Taxis (Newport),TAXIS APR15,7.8,Not Applicable
Department for Business Innovation and Skills,Intellectual Property Office,11/05/2015,Travel & Subsistence,Innovation Directorate,Veezu Ltd T/A Dragon Taxis (Newport),TAXIS APR15,30.6,Not Applicable
Department for Business Innovation and Skills,Intellectual Property Office,11/05/2015,Travel & Subsistence,Finance Directorate,Veezu Ltd T/A Dragon Taxis (Newport),TAXIS APR15,7.8,Not Applicable
Department for Business Innovation and Skills,Intellectual Property Office,11/05/2015,Travel & Subsistence,Trade Marks Directorate,Veezu Ltd T/A Dragon Taxis (Newport),TAXIS APR15,37.2,Not Applicable
Department for Business Innovation and Skills,Intellectual Property Office,11/05/2015,Travel & Subsistence,International Policy Directorate,Veezu Ltd T/A Dragon Taxis (Newport),TAXIS APR15,68.4,Not Applicable
Department for Business Innovation and Skills,Intellectual Property Office,21/05/2015,Telecoms,IT Directorate,British  Telecom,VP02239170M16101,8731.52,Not Applicable
Department for Business Innovation and Skills,Intellectual Property Office,15/05/2015,Staff Costs,"People, Places and Services Directorate",Waterloo Hotel & Bistro,WHTH1004-1C,132.78,Not Applicable
Department for Business Innovation and Skills,Intellectual Property Office,13/05/2015,Travel & Subsistence,International Policy Directorate,David Roberts,WIPO VISIT,206.68,Not Applicable
Department for Business Innovation and Skills,Intellectual Property Office,15/05/2015,Telecoms,IT Directorate,British  Telecom,WM39430908Q013B&,2016.9,Not Applicable
Department for Business Innovation and Skills,Intellectual Property Office,12/05/2015,Staff Costs,"People, Places and Services Directorate",Capita Business Services  Ltd,X55796,1413.6,Not Applicable
Department for Business Innovation and Skills,Intellectual Property Office,20/05/2015,Staff Costs,IT Directorate,Capita Business Services  Ltd,X56577,1598.4,Not Applicable
Department for Business Innovation and Skills,Intellectual Property Office,20/05/2015,Staff Costs,Copyright and IP Enforcement Directorate,Capita Business Services  Ltd,X56580,1598.4,Not Applicable
Department for Business Innovation and Skills,Intellectual Property Office,12/05/2015,Staff Costs,Innovation Directorate,Capita Business Services  Ltd,X57622,207.6,Not Applicable
Department for Business Innovation and Skills,Intellectual Property Office,12/05/2015,Staff Costs,"People, Places and Services Directorate",Capita Business Services  Ltd,X60172,1552.8,Not Applicable
Department for Business Innovation and Skills,Intellectual Property Office,12/05/2015,Staff Costs,"People, Places and Services Directorate",Capita Business Services  Ltd,X61880,2054.4,Not Applicable
Department for Business Innovation and Skills,Intellectual Property Office,20/05/2015,Staff Costs,International Policy Directorate,Capita Business Services  Ltd,X63896,2.4,Not Applicable
Department for Business Innovation and Skills,Intellectual Property Office,20/05/2015,Staff Costs,Patents Directorate,Capita Business Services  Ltd,X63897,27.6,Not Applicable
Department for Business Innovation and Skills,Intellectual Property Office,20/05/2015,Staff Costs,IT Directorate,Capita Business Services  Ltd,X63898,26.4,Not Applicable
Department for Business Innovation and Skills,Intellectual Property Office,20/05/2015,Staff Costs,Innovation Directorate,Capita Business Services  Ltd,X63899,18,Not Applicable
Department for Business Innovation and Skills,Intellectual Property Office,20/05/2015,Staff Costs,"People, Places and Services Directorate",Capita Business Services  Ltd,X64510,3151.2,Not Applicable
Department for Business Innovation and Skills,Intellectual Property Office,20/05/2015,Staff Costs,"People, Places and Services Directorate",Capita Business Services  Ltd,X65297,1552.8,Not Applicable
Department for Business Innovation and Skills,Intellectual Property Office,20/05/2015,Staff Costs,"People, Places and Services Directorate",Capita Business Services  Ltd,X65298,5647.2,Not Applicable
Department for Business Innovation and Skills,Intellectual Property Office,20/05/2015,Staff Costs,Innovation Directorate,Capita Business Services  Ltd,X66202,207.6,Not Applicable
Department for Business Innovation and Skills,Intellectual Property Office,20/05/2015,Staff Costs,"People, Places and Services Directorate",Capita Business Services  Ltd,X66204,5055.6,Not Applicable
Department for Business Innovation and Skills,Intellectual Property Office,21/05/2015,Staff Costs,Patents Directorate,Capita Business Services  Ltd,X69976,300,Not Applicable
Department for Business Innovation and Skills,Intellectual Property Office,13/05/2015,Staff Costs,"People, Places and Services Directorate",Capita Business Services  Ltd,X69978,66,Not Applicable
Department for Business Innovation and Skills,Intellectual Property Office,29/05/2015,Supporting UK Business,Innovation Directorate,Atkinson & Company,Y114,2784,Not Applicable
